{"text_format":"1","workbook":"xlsx","n_sheets":19,"sheets":["Deckblatt","Kriterien"," Fragebogen (1)"," Fragebogen (2)"," Fragebogen (3)"," Fragebogen (4)"," Fragebogen (5)"," Fragebogen (6)"," Fragebogen (7)","Eingabe Fragebogen","Min_Max_Ist","Min_Max_Soll","Ist_Konkurrenz","Soll_Konkurrenz","Gesamtübersicht","Ist_Soll","Ist_Soll_Tabelle","Ist_Konkurrenz_Tabelle","Soll_Konkurrenz_Tabelle"],"not_rendered":{"charts":6,"images":9,"macros":1,"external_links":0,"defined_names":13,"comments":0,"pivot_tables":0},"unopened":[],"bounds":{"document_bytes":16777216,"sheet_cells":100000,"rows_first":2000,"rows_last":500,"rows_between":2000,"halvings":0,"cell_chars":16384,"cell_head_chars":4096},"cells_cut":0,"cells_raw":0,"read":"whole","date_system":"1900"}

{"sheet":"Deckblatt","index":0,"n_rows":32,"n_cols":7,"rows_kept":32,"cut":false,"hidden":false,"merged":[]}
[]
[]
[]
[]
[]
[]
[]
[]
[]
[]
[]
[null,null,null,null,"Praxistool"]
[]
[]
[]
[]
[]
[null,null,null,null," zur Optimierung der Arbeitgeberattraktivität"]
[]
[]
[]
[]
[]
[]
[]
[null,null,null,null,"Produkt aus KTI-Projekt"]
[]
[]
[]
[]
[]
[null,null,null,null,null,null,"© Avenir Consulting AG"]

{"sheet":"Kriterien","index":1,"n_rows":44,"n_cols":3,"rows_kept":44,"cut":false,"hidden":false,"merged":[]}
[]
[]
[]
[null,null,"Kriterien der Arbeitgeberattraktivität"]
[]
[]
[]
[null,null,"Arbeit & Karriere"]
[]
[null,null,"A1 Attraktive Tätigkeit"]
[null,null,"A2 hohe Eigenverantwortung / Gestaltungsspielraum"]
[null,null,"A3 Kollegialität"]
[null,null,"A4 Karriere-/ Entwicklungsmöglichkeiten"]
[null,null,"A5 Unterstützung für Weiterbildung"]
[null,null,"A6 Arbeitsbelastung + Arbeitszeit"]
[null,null,"A7 Arbeitsplatzsicherheit"]
[]
[]
[]
[null,null,"Vergütung"]
[]
[null,null,"B1 Lohnniveau"]
[null,null,"B2 Lohnmodell"]
[null,null,"B3 Sozial- und Nebenleistungen"]
[]
[]
[]
[null,null,"Unternehmen & Führungskultur"]
[]
[null,null,"C1 Führungskultur"]
[null,null,"C2 Informations- und Kommunikationspolitik"]
[null,null,"C3 Lernkultur/Innovationen"]
[null,null,"C4 Attraktivität des Unternehmens"]
[null,null,"C5 Work-Life-Balance"]
[]
[]
[]
[null,null,"Region"]
[]
[null,null,"D1 Verkehrsanbindung"]
[null,null,"D2 Image der Region"]
[null,null,"D3 Regionale Verankerung"]
[null,null,"D4 Regionale Vernetzung"]
[null,null,"D5 Arbeitsmarkt"]

{"sheet":" Fragebogen (1)","index":2,"n_rows":47,"n_cols":11,"rows_kept":47,"cut":false,"hidden":false,"merged":[]}
[]
[null,null,"Fragen                    © Avenir Consulting AG",null,null,"nur ganze Zahlen"]
[]
[]
[null,null,"Mit Blick auf Ihre Fach- und Führungskräfte:\nWie beurteilen Sie…",null,"Ist",null,"Soll"]
[]
[null,"A1","…den Anspruch an die Tätigkeit in Ihrem Unternehmen aus fachlicher Sicht?"]
[null,"A1","...die Vielfältigkeit und den Abwechslungsreichtum des Tätigkeitsfeldes?"]
[null,"A2","...die Grösse des Gestaltungsspielraum der Mitarbeitenden?"]
[null,"A2","...den Eigenverantwortungsgrad des Einzelnen bei seiner Tätigkeit?"]
[null,"A3","...die Zusammenarbeit der Mitarbeitenden untereinander?"]
[null,"A4","...die Aufstiegsmöglichkeiten?",null,null,null,null,null,null,null,"Skala:"]
[null,"A4","...die Möglichkeit, sich durch Zunahme des Verantwortungsbereichs zu entwickeln?",null,null,null,null,null,null,null," 1 = sehr klein/tief (- -)"]
[null,"A4","...die Möglichkeit, intern in andere Tätigkeits- und Aufgabenbereiche zu wechseln?",null,null,null,null,null,null,null," 2 = eher klein/tief (-)"]
[null,"A4","...die Möglichkeit eine formalisierte Personalentwicklung zu durchlaufen?",null,null,null,null,null,null,null," 3 = durchschnittlich (o)"]
[null,"A5","...die Unterstützung für die Weiterbildung der Mitarbeitenden?",null,null,null,null,null,null,null," 4 = eher gross/hoch (+)"]
[null,"A6","...Sie die Arbeitszeit-Flexibilität für Arbeitnehmende?",null,null,null,null,null,null,null," 5 = sehr gross/hoch (++)"]
[null,"A6","...die zeitliche Arbeitsbelastung für Arbeitnehmende?"]
[null,"A6","...den Arbeitsdruck für Arbeitnehmende?"]
[null,"A7","...die Arbeitsplatzsicherheit?"]
[]
[null,"B1","...die Attraktivität des Lohnniveaus für das Kader?"]
[null,"B1","...die Attraktivität des Lohnniveaus für das Nicht-Kader?"]
[null,"B2","...das Lohnmodell (Grundlohn + variable Lohnbestandteile) für das Kader "]
[null,"B2","...das Lohnmodell (Grundlohn + variable Lohnbestandteile) für das Nicht-Kader "]
[null,"B3","...die Attraktivität der Sozialleistungen (z.B. Altersvorsorge, Lohnfortzahlung bei Krankheit etc.) und Nebenleistungen (z.B. Bahnabonnemente etc.)?"]
[]
[null,"C1","...das Verhältnis zwischen Mitarbeitenden und Vorgesetzten?"]
[null,"C1","...die Führungsgrundsätze in ihrem Unternehmen?"]
[null,"C1","...die Anerkennung für Leistung (z.B. durch Wertschätzung, Lob)?"]
[null,"C1","...die Entscheidungswege in ihrem Unternehmen hinsichtlich  Schnelligkeit?"]
[null,"C2","...die Qualität und Häufigkeit von Information und Kommunikation innerhalb des Unternehmens?"]
[null,"C3","...die Möglichkeiten, neue Ideen einzubringen und umzusetzen?"]
[null,"C4","...die Identifikation der Mitarbeitenden mit Ihrer Unternehmung?"]
[null,"C4","...die Attraktivität des Leitbildes Ihres Unternehmens?"]
[null,"C4","...die Attraktivität der Produkte für Arbeitnehmende?"]
[null,"C4","...die Attraktivität Ihrer Branche?"]
[null,"C5","...die Work-Life-Balance (z.B. Familienfreundlichkeit, Teilzeitarbeit, standortunabhängiges Arbeiten, Elternurlaub) Ihrer Unternehmung?"]
[]
[null,"D1","...die Verkehrsanbindung des Unternehmens (öffenlticher Verkehr und Individualverkehr)?"]
[null,"D2","...das Image der Region?"]
[null,"D3","...die Präsenz Ihres Unternehmens in der öffentlichen Wahrnehmung (z.B. Zeitungsberichterstattung) in der Region?"]
[null,"D3","...die regionale Verbundenheit von auswärtigen bzw. ausländischen Arbeitskräften?"]
[null,"D3","...Ihre Relocation-Angebote für auswärtige bzw. ausländische Arbeitskräfte und deren Familien (z.B. Informationen zu ausländischen Schulen, Wohnungssuche etc.)?"]
[null,"D4","...die Kooperation / Vernetzung mit anderen Unternehmen in der Region?"]
[null,"D4","...den Austausch mit regionalen Interessenverbänden (z.B. Kammern, Wirtschaftsverbände) und Behörden (z.B. Gemeinde und Kanton)?"]
[null,"D5","...den Bekanntheitsgrad des Unternehmens auf dem relevanten Arbeitsmarkt?"]

{"sheet":" Fragebogen (2)","index":3,"n_rows":47,"n_cols":11,"rows_kept":47,"cut":false,"hidden":false,"merged":[]}
[]
[null,null,"Fragen                    © Avenir Consulting AG",null,null,"nur ganze Zahlen"]
[]
[]
[null,null,"Mit Blick auf Ihre Fach- und Führungskräfte:\nWie beurteilen Sie…",null,"Ist",null,"Soll"]
[]
[null,"A1","…den Anspruch an die Tätigkeit in Ihrem Unternehmen aus fachlicher Sicht?"]
[null,"A1","...die Vielfältigkeit und den Abwechslungsreichtum des Tätigkeitsfeldes?"]
[null,"A2","...die Grösse des Gestaltungsspielraum der Mitarbeitenden?"]
[null,"A2","...den Eigenverantwortungsgrad des Einzelnen bei seiner Tätigkeit?"]
[null,"A3","...die Zusammenarbeit der Mitarbeitenden untereinander?"]
[null,"A4","...die Aufstiegsmöglichkeiten?",null,null,null,null,null,null,null,"Skala:"]
[null,"A4","...die Möglichkeit, sich durch Zunahme des Verantwortungsbereichs zu entwickeln?",null,null,null,null,null,null,null," 1 = sehr klein/tief (- -)"]
[null,"A4","...die Möglichkeit, intern in andere Tätigkeits- und Aufgabenbereiche zu wechseln?",null,null,null,null,null,null,null," 2 = eher klein/tief (-)"]
[null,"A4","...die Möglichkeit eine formalisierte Personalentwicklung zu durchlaufen?",null,null,null,null,null,null,null," 3 = durchschnittlich (o)"]
[null,"A5","...die Unterstützung für die Weiterbildung der Mitarbeitenden?",null,null,null,null,null,null,null," 4 = eher gross/hoch (+)"]
[null,"A6","...Sie die Arbeitszeit-Flexibilität für Arbeitnehmende?",null,null,null,null,null,null,null," 5 = sehr gross/hoch (++)"]
[null,"A6","...die zeitliche Arbeitsbelastung für Arbeitnehmende?"]
[null,"A6","...den Arbeitsdruck für Arbeitnehmende?"]
[null,"A7","...die Arbeitsplatzsicherheit?"]
[]
[null,"B1","...die Attraktivität des Lohnniveaus für das Kader?"]
[null,"B1","...die Attraktivität des Lohnniveaus für das Nicht-Kader?"]
[null,"B2","...das Lohnmodell (Grundlohn + variable Lohnbestandteile) für das Kader "]
[null,"B2","...das Lohnmodell (Grundlohn + variable Lohnbestandteile) für das Nicht-Kader "]
[null,"B3","...die Attraktivität der Sozialleistungen (z.B. Altersvorsorge, Lohnfortzahlung bei Krankheit etc.) und Nebenleistungen (z.B. Bahnabonnemente etc.)?"]
[]
[null,"C1","...das Verhältnis zwischen Mitarbeitenden und Vorgesetzten?"]
[null,"C1","...die Führungsgrundsätze in ihrem Unternehmen?"]
[null,"C1","...die Anerkennung für Leistung (z.B. durch Wertschätzung, Lob)?"]
[null,"C1","...die Entscheidungswege in ihrem Unternehmen hinsichtlich  Schnelligkeit?"]
[null,"C2","...die Qualität und Häufigkeit von Information und Kommunikation innerhalb des Unternehmens?"]
[null,"C3","...die Möglichkeiten, neue Ideen einzubringen und umzusetzen?"]
[null,"C4","...die Identifikation der Mitarbeitenden mit Ihrer Unternehmung?"]
[null,"C4","...die Attraktivität des Leitbildes Ihres Unternehmens?"]
[null,"C4","...die Attraktivität der Produkte für Arbeitnehmende?"]
[null,"C4","...die Attraktivität Ihrer Branche?"]
[null,"C5","...die Work-Life-Balance (z.B. Familienfreundlichkeit, Teilzeitarbeit, standortunabhängiges Arbeiten, Elternurlaub) Ihrer Unternehmung?"]
[]
[null,"D1","...die Verkehrsanbindung des Unternehmens (öffenlticher Verkehr und Individualverkehr)?"]
[null,"D2","...das Image der Region?"]
[null,"D3","...die Präsenz Ihres Unternehmens in der öffentlichen Wahrnehmung (z.B. Zeitungsberichterstattung) in der Region?"]
[null,"D3","...die regionale Verbundenheit von auswärtigen bzw. ausländischen Arbeitskräften?"]
[null,"D3","...Ihre Relocation-Angebote für auswärtige bzw. ausländische Arbeitskräfte und deren Familien (z.B. Informationen zu ausländischen Schulen, Wohnungssuche etc.)?"]
[null,"D4","...die Kooperation / Vernetzung mit anderen Unternehmen in der Region?"]
[null,"D4","...den Austausch mit regionalen Interessenverbänden (z.B. Kammern, Wirtschaftsverbände) und Behörden (z.B. Gemeinde und Kanton)?"]
[null,"D5","...den Bekanntheitsgrad des Unternehmens auf dem relevanten Arbeitsmarkt?"]

{"sheet":" Fragebogen (3)","index":4,"n_rows":47,"n_cols":11,"rows_kept":47,"cut":false,"hidden":false,"merged":[]}
[]
[null,null,"Fragen                    © Avenir Consulting AG",null,null,"nur ganze Zahlen"]
[]
[]
[null,null,"Mit Blick auf Ihre Fach- und Führungskräfte:\nWie beurteilen Sie…",null,"Ist",null,"Soll"]
[]
[null,"A1","…den Anspruch an die Tätigkeit in Ihrem Unternehmen aus fachlicher Sicht?"]
[null,"A1","...die Vielfältigkeit und den Abwechslungsreichtum des Tätigkeitsfeldes?"]
[null,"A2","...die Grösse des Gestaltungsspielraum der Mitarbeitenden?"]
[null,"A2","...den Eigenverantwortungsgrad des Einzelnen bei seiner Tätigkeit?"]
[null,"A3","...die Zusammenarbeit der Mitarbeitenden untereinander?"]
[null,"A4","...die Aufstiegsmöglichkeiten?",null,null,null,null,null,null,null,"Skala:"]
[null,"A4","...die Möglichkeit, sich durch Zunahme des Verantwortungsbereichs zu entwickeln?",null,null,null,null,null,null,null," 1 = sehr klein/tief (- -)"]
[null,"A4","...die Möglichkeit, intern in andere Tätigkeits- und Aufgabenbereiche zu wechseln?",null,null,null,null,null,null,null," 2 = eher klein/tief (-)"]
[null,"A4","...die Möglichkeit eine formalisierte Personalentwicklung zu durchlaufen?",null,null,null,null,null,null,null," 3 = durchschnittlich (o)"]
[null,"A5","...die Unterstützung für die Weiterbildung der Mitarbeitenden?",null,null,null,null,null,null,null," 4 = eher gross/hoch (+)"]
[null,"A6","...Sie die Arbeitszeit-Flexibilität für Arbeitnehmende?",null,null,null,null,null,null,null," 5 = sehr gross/hoch (++)"]
[null,"A6","...die zeitliche Arbeitsbelastung für Arbeitnehmende?"]
[null,"A6","...den Arbeitsdruck für Arbeitnehmende?"]
[null,"A7","...die Arbeitsplatzsicherheit?"]
[]
[null,"B1","...die Attraktivität des Lohnniveaus für das Kader?"]
[null,"B1","...die Attraktivität des Lohnniveaus für das Nicht-Kader?"]
[null,"B2","...das Lohnmodell (Grundlohn + variable Lohnbestandteile) für das Kader "]
[null,"B2","...das Lohnmodell (Grundlohn + variable Lohnbestandteile) für das Nicht-Kader "]
[null,"B3","...die Attraktivität der Sozialleistungen (z.B. Altersvorsorge, Lohnfortzahlung bei Krankheit etc.) und Nebenleistungen (z.B. Bahnabonnemente etc.)?"]
[]
[null,"C1","...das Verhältnis zwischen Mitarbeitenden und Vorgesetzten?"]
[null,"C1","...die Führungsgrundsätze in ihrem Unternehmen?"]
[null,"C1","...die Anerkennung für Leistung (z.B. durch Wertschätzung, Lob)?"]
[null,"C1","...die Entscheidungswege in ihrem Unternehmen hinsichtlich  Schnelligkeit?"]
[null,"C2","...die Qualität und Häufigkeit von Information und Kommunikation innerhalb des Unternehmens?"]
[null,"C3","...die Möglichkeiten, neue Ideen einzubringen und umzusetzen?"]
[null,"C4","...die Identifikation der Mitarbeitenden mit Ihrer Unternehmung?"]
[null,"C4","...die Attraktivität des Leitbildes Ihres Unternehmens?"]
[null,"C4","...die Attraktivität der Produkte für Arbeitnehmende?"]
[null,"C4","...die Attraktivität Ihrer Branche?"]
[null,"C5","...die Work-Life-Balance (z.B. Familienfreundlichkeit, Teilzeitarbeit, standortunabhängiges Arbeiten, Elternurlaub) Ihrer Unternehmung?"]
[]
[null,"D1","...die Verkehrsanbindung des Unternehmens (öffenlticher Verkehr und Individualverkehr)?"]
[null,"D2","...das Image der Region?"]
[null,"D3","...die Präsenz Ihres Unternehmens in der öffentlichen Wahrnehmung (z.B. Zeitungsberichterstattung) in der Region?"]
[null,"D3","...die regionale Verbundenheit von auswärtigen bzw. ausländischen Arbeitskräften?"]
[null,"D3","...Ihre Relocation-Angebote für auswärtige bzw. ausländische Arbeitskräfte und deren Familien (z.B. Informationen zu ausländischen Schulen, Wohnungssuche etc.)?"]
[null,"D4","...die Kooperation / Vernetzung mit anderen Unternehmen in der Region?"]
[null,"D4","...den Austausch mit regionalen Interessenverbänden (z.B. Kammern, Wirtschaftsverbände) und Behörden (z.B. Gemeinde und Kanton)?"]
[null,"D5","...den Bekanntheitsgrad des Unternehmens auf dem relevanten Arbeitsmarkt?"]

{"sheet":" Fragebogen (4)","index":5,"n_rows":47,"n_cols":11,"rows_kept":47,"cut":false,"hidden":false,"merged":[]}
[]
[null,null,"Fragen                    © Avenir Consulting AG",null,null,"nur ganze Zahlen"]
[]
[]
[null,null,"Mit Blick auf Ihre Fach- und Führungskräfte:\nWie beurteilen Sie…",null,"Ist",null,"Soll"]
[]
[null,"A1","…den Anspruch an die Tätigkeit in Ihrem Unternehmen aus fachlicher Sicht?"]
[null,"A1","...die Vielfältigkeit und den Abwechslungsreichtum des Tätigkeitsfeldes?"]
[null,"A2","...die Grösse des Gestaltungsspielraum der Mitarbeitenden?"]
[null,"A2","...den Eigenverantwortungsgrad des Einzelnen bei seiner Tätigkeit?"]
[null,"A3","...die Zusammenarbeit der Mitarbeitenden untereinander?"]
[null,"A4","...die Aufstiegsmöglichkeiten?",null,null,null,null,null,null,null,"Skala:"]
[null,"A4","...die Möglichkeit, sich durch Zunahme des Verantwortungsbereichs zu entwickeln?",null,null,null,null,null,null,null," 1 = sehr klein/tief (- -)"]
[null,"A4","...die Möglichkeit, intern in andere Tätigkeits- und Aufgabenbereiche zu wechseln?",null,null,null,null,null,null,null," 2 = eher klein/tief (-)"]
[null,"A4","...die Möglichkeit eine formalisierte Personalentwicklung zu durchlaufen?",null,null,null,null,null,null,null," 3 = durchschnittlich (o)"]
[null,"A5","...die Unterstützung für die Weiterbildung der Mitarbeitenden?",null,null,null,null,null,null,null," 4 = eher gross/hoch (+)"]
[null,"A6","...Sie die Arbeitszeit-Flexibilität für Arbeitnehmende?",null,null,null,null,null,null,null," 5 = sehr gross/hoch (++)"]
[null,"A6","...die zeitliche Arbeitsbelastung für Arbeitnehmende?"]
[null,"A6","...den Arbeitsdruck für Arbeitnehmende?"]
[null,"A7","...die Arbeitsplatzsicherheit?"]
[]
[null,"B1","...die Attraktivität des Lohnniveaus für das Kader?"]
[null,"B1","...die Attraktivität des Lohnniveaus für das Nicht-Kader?"]
[null,"B2","...das Lohnmodell (Grundlohn + variable Lohnbestandteile) für das Kader "]
[null,"B2","...das Lohnmodell (Grundlohn + variable Lohnbestandteile) für das Nicht-Kader "]
[null,"B3","...die Attraktivität der Sozialleistungen (z.B. Altersvorsorge, Lohnfortzahlung bei Krankheit etc.) und Nebenleistungen (z.B. Bahnabonnemente etc.)?"]
[]
[null,"C1","...das Verhältnis zwischen Mitarbeitenden und Vorgesetzten?"]
[null,"C1","...die Führungsgrundsätze in ihrem Unternehmen?"]
[null,"C1","...die Anerkennung für Leistung (z.B. durch Wertschätzung, Lob)?"]
[null,"C1","...die Entscheidungswege in ihrem Unternehmen hinsichtlich  Schnelligkeit?"]
[null,"C2","...die Qualität und Häufigkeit von Information und Kommunikation innerhalb des Unternehmens?"]
[null,"C3","...die Möglichkeiten, neue Ideen einzubringen und umzusetzen?"]
[null,"C4","...die Identifikation der Mitarbeitenden mit Ihrer Unternehmung?"]
[null,"C4","...die Attraktivität des Leitbildes Ihres Unternehmens?"]
[null,"C4","...die Attraktivität der Produkte für Arbeitnehmende?"]
[null,"C4","...die Attraktivität Ihrer Branche?"]
[null,"C5","...die Work-Life-Balance (z.B. Familienfreundlichkeit, Teilzeitarbeit, standortunabhängiges Arbeiten, Elternurlaub) Ihrer Unternehmung?"]
[]
[null,"D1","...die Verkehrsanbindung des Unternehmens (öffenlticher Verkehr und Individualverkehr)?"]
[null,"D2","...das Image der Region?"]
[null,"D3","...die Präsenz Ihres Unternehmens in der öffentlichen Wahrnehmung (z.B. Zeitungsberichterstattung) in der Region?"]
[null,"D3","...die regionale Verbundenheit von auswärtigen bzw. ausländischen Arbeitskräften?"]
[null,"D3","...Ihre Relocation-Angebote für auswärtige bzw. ausländische Arbeitskräfte und deren Familien (z.B. Informationen zu ausländischen Schulen, Wohnungssuche etc.)?"]
[null,"D4","...die Kooperation / Vernetzung mit anderen Unternehmen in der Region?"]
[null,"D4","...den Austausch mit regionalen Interessenverbänden (z.B. Kammern, Wirtschaftsverbände) und Behörden (z.B. Gemeinde und Kanton)?"]
[null,"D5","...den Bekanntheitsgrad des Unternehmens auf dem relevanten Arbeitsmarkt?"]

{"sheet":" Fragebogen (5)","index":6,"n_rows":47,"n_cols":11,"rows_kept":47,"cut":false,"hidden":false,"merged":[]}
[]
[null,null,"Fragen                    © Avenir Consulting AG",null,null,"nur ganze Zahlen"]
[]
[]
[null,null,"Mit Blick auf Ihre Fach- und Führungskräfte:\nWie beurteilen Sie…",null,"Ist",null,"Soll"]
[]
[null,"A1","…den Anspruch an die Tätigkeit in Ihrem Unternehmen aus fachlicher Sicht?"]
[null,"A1","...die Vielfältigkeit und den Abwechslungsreichtum des Tätigkeitsfeldes?"]
[null,"A2","...die Grösse des Gestaltungsspielraum der Mitarbeitenden?"]
[null,"A2","...den Eigenverantwortungsgrad des Einzelnen bei seiner Tätigkeit?"]
[null,"A3","...die Zusammenarbeit der Mitarbeitenden untereinander?"]
[null,"A4","...die Aufstiegsmöglichkeiten?",null,null,null,null,null,null,null,"Skala:"]
[null,"A4","...die Möglichkeit, sich durch Zunahme des Verantwortungsbereichs zu entwickeln?",null,null,null,null,null,null,null," 1 = sehr klein/tief (- -)"]
[null,"A4","...die Möglichkeit, intern in andere Tätigkeits- und Aufgabenbereiche zu wechseln?",null,null,null,null,null,null,null," 2 = eher klein/tief (-)"]
[null,"A4","...die Möglichkeit eine formalisierte Personalentwicklung zu durchlaufen?",null,null,null,null,null,null,null," 3 = durchschnittlich (o)"]
[null,"A5","...die Unterstützung für die Weiterbildung der Mitarbeitenden?",null,null,null,null,null,null,null," 4 = eher gross/hoch (+)"]
[null,"A6","...Sie die Arbeitszeit-Flexibilität für Arbeitnehmende?",null,null,null,null,null,null,null," 5 = sehr gross/hoch (++)"]
[null,"A6","...die zeitliche Arbeitsbelastung für Arbeitnehmende?"]
[null,"A6","...den Arbeitsdruck für Arbeitnehmende?"]
[null,"A7","...die Arbeitsplatzsicherheit?"]
[]
[null,"B1","...die Attraktivität des Lohnniveaus für das Kader?"]
[null,"B1","...die Attraktivität des Lohnniveaus für das Nicht-Kader?"]
[null,"B2","...das Lohnmodell (Grundlohn + variable Lohnbestandteile) für das Kader "]
[null,"B2","...das Lohnmodell (Grundlohn + variable Lohnbestandteile) für das Nicht-Kader "]
[null,"B3","...die Attraktivität der Sozialleistungen (z.B. Altersvorsorge, Lohnfortzahlung bei Krankheit etc.) und Nebenleistungen (z.B. Bahnabonnemente etc.)?"]
[]
[null,"C1","...das Verhältnis zwischen Mitarbeitenden und Vorgesetzten?"]
[null,"C1","...die Führungsgrundsätze in ihrem Unternehmen?"]
[null,"C1","...die Anerkennung für Leistung (z.B. durch Wertschätzung, Lob)?"]
[null,"C1","...die Entscheidungswege in ihrem Unternehmen hinsichtlich  Schnelligkeit?"]
[null,"C2","...die Qualität und Häufigkeit von Information und Kommunikation innerhalb des Unternehmens?"]
[null,"C3","...die Möglichkeiten, neue Ideen einzubringen und umzusetzen?"]
[null,"C4","...die Identifikation der Mitarbeitenden mit Ihrer Unternehmung?"]
[null,"C4","...die Attraktivität des Leitbildes Ihres Unternehmens?"]
[null,"C4","...die Attraktivität der Produkte für Arbeitnehmende?"]
[null,"C4","...die Attraktivität Ihrer Branche?"]
[null,"C5","...die Work-Life-Balance (z.B. Familienfreundlichkeit, Teilzeitarbeit, standortunabhängiges Arbeiten, Elternurlaub) Ihrer Unternehmung?"]
[]
[null,"D1","...die Verkehrsanbindung des Unternehmens (öffenlticher Verkehr und Individualverkehr)?"]
[null,"D2","...das Image der Region?"]
[null,"D3","...die Präsenz Ihres Unternehmens in der öffentlichen Wahrnehmung (z.B. Zeitungsberichterstattung) in der Region?"]
[null,"D3","...die regionale Verbundenheit von auswärtigen bzw. ausländischen Arbeitskräften?"]
[null,"D3","...Ihre Relocation-Angebote für auswärtige bzw. ausländische Arbeitskräfte und deren Familien (z.B. Informationen zu ausländischen Schulen, Wohnungssuche etc.)?"]
[null,"D4","...die Kooperation / Vernetzung mit anderen Unternehmen in der Region?"]
[null,"D4","...den Austausch mit regionalen Interessenverbänden (z.B. Kammern, Wirtschaftsverbände) und Behörden (z.B. Gemeinde und Kanton)?"]
[null,"D5","...den Bekanntheitsgrad des Unternehmens auf dem relevanten Arbeitsmarkt?"]

{"sheet":" Fragebogen (6)","index":7,"n_rows":47,"n_cols":11,"rows_kept":47,"cut":false,"hidden":false,"merged":[]}
[]
[null,null,"Fragen                    © Avenir Consulting AG",null,null,"nur ganze Zahlen"]
[]
[]
[null,null,"Mit Blick auf Ihre Fach- und Führungskräfte:\nWie beurteilen Sie…",null,"Ist",null,"Soll"]
[]
[null,"A1","…den Anspruch an die Tätigkeit in Ihrem Unternehmen aus fachlicher Sicht?"]
[null,"A1","...die Vielfältigkeit und den Abwechslungsreichtum des Tätigkeitsfeldes?"]
[null,"A2","...die Grösse des Gestaltungsspielraum der Mitarbeitenden?"]
[null,"A2","...den Eigenverantwortungsgrad des Einzelnen bei seiner Tätigkeit?"]
[null,"A3","...die Zusammenarbeit der Mitarbeitenden untereinander?"]
[null,"A4","...die Aufstiegsmöglichkeiten?",null,null,null,null,null,null,null,"Skala:"]
[null,"A4","...die Möglichkeit, sich durch Zunahme des Verantwortungsbereichs zu entwickeln?",null,null,null,null,null,null,null," 1 = sehr klein/tief (- -)"]
[null,"A4","...die Möglichkeit, intern in andere Tätigkeits- und Aufgabenbereiche zu wechseln?",null,null,null,null,null,null,null," 2 = eher klein/tief (-)"]
[null,"A4","...die Möglichkeit eine formalisierte Personalentwicklung zu durchlaufen?",null,null,null,null,null,null,null," 3 = durchschnittlich (o)"]
[null,"A5","...die Unterstützung für die Weiterbildung der Mitarbeitenden?",null,null,null,null,null,null,null," 4 = eher gross/hoch (+)"]
[null,"A6","...Sie die Arbeitszeit-Flexibilität für Arbeitnehmende?",null,null,null,null,null,null,null," 5 = sehr gross/hoch (++)"]
[null,"A6","...die zeitliche Arbeitsbelastung für Arbeitnehmende?"]
[null,"A6","...den Arbeitsdruck für Arbeitnehmende?"]
[null,"A7","...die Arbeitsplatzsicherheit?"]
[]
[null,"B1","...die Attraktivität des Lohnniveaus für das Kader?"]
[null,"B1","...die Attraktivität des Lohnniveaus für das Nicht-Kader?"]
[null,"B2","...das Lohnmodell (Grundlohn + variable Lohnbestandteile) für das Kader "]
[null,"B2","...das Lohnmodell (Grundlohn + variable Lohnbestandteile) für das Nicht-Kader "]
[null,"B3","...die Attraktivität der Sozialleistungen (z.B. Altersvorsorge, Lohnfortzahlung bei Krankheit etc.) und Nebenleistungen (z.B. Bahnabonnemente etc.)?"]
[]
[null,"C1","...das Verhältnis zwischen Mitarbeitenden und Vorgesetzten?"]
[null,"C1","...die Führungsgrundsätze in ihrem Unternehmen?"]
[null,"C1","...die Anerkennung für Leistung (z.B. durch Wertschätzung, Lob)?"]
[null,"C1","...die Entscheidungswege in ihrem Unternehmen hinsichtlich  Schnelligkeit?"]
[null,"C2","...die Qualität und Häufigkeit von Information und Kommunikation innerhalb des Unternehmens?"]
[null,"C3","...die Möglichkeiten, neue Ideen einzubringen und umzusetzen?"]
[null,"C4","...die Identifikation der Mitarbeitenden mit Ihrer Unternehmung?"]
[null,"C4","...die Attraktivität des Leitbildes Ihres Unternehmens?"]
[null,"C4","...die Attraktivität der Produkte für Arbeitnehmende?"]
[null,"C4","...die Attraktivität Ihrer Branche?"]
[null,"C5","...die Work-Life-Balance (z.B. Familienfreundlichkeit, Teilzeitarbeit, standortunabhängiges Arbeiten, Elternurlaub) Ihrer Unternehmung?"]
[]
[null,"D1","...die Verkehrsanbindung des Unternehmens (öffenlticher Verkehr und Individualverkehr)?"]
[null,"D2","...das Image der Region?"]
[null,"D3","...die Präsenz Ihres Unternehmens in der öffentlichen Wahrnehmung (z.B. Zeitungsberichterstattung) in der Region?"]
[null,"D3","...die regionale Verbundenheit von auswärtigen bzw. ausländischen Arbeitskräften?"]
[null,"D3","...Ihre Relocation-Angebote für auswärtige bzw. ausländische Arbeitskräfte und deren Familien (z.B. Informationen zu ausländischen Schulen, Wohnungssuche etc.)?"]
[null,"D4","...die Kooperation / Vernetzung mit anderen Unternehmen in der Region?"]
[null,"D4","...den Austausch mit regionalen Interessenverbänden (z.B. Kammern, Wirtschaftsverbände) und Behörden (z.B. Gemeinde und Kanton)?"]
[null,"D5","...den Bekanntheitsgrad des Unternehmens auf dem relevanten Arbeitsmarkt?"]

{"sheet":" Fragebogen (7)","index":8,"n_rows":47,"n_cols":11,"rows_kept":47,"cut":false,"hidden":false,"merged":[]}
[]
[null,null,"Fragen                    © Avenir Consulting AG",null,null,"nur ganze Zahlen"]
[]
[]
[null,null,"Mit Blick auf Ihre Fach- und Führungskräfte:\nWie beurteilen Sie…",null,"Ist",null,"Soll"]
[]
[null,"A1","…den Anspruch an die Tätigkeit in Ihrem Unternehmen aus fachlicher Sicht?"]
[null,"A1","...die Vielfältigkeit und den Abwechslungsreichtum des Tätigkeitsfeldes?"]
[null,"A2","...die Grösse des Gestaltungsspielraum der Mitarbeitenden?"]
[null,"A2","...den Eigenverantwortungsgrad des Einzelnen bei seiner Tätigkeit?"]
[null,"A3","...die Zusammenarbeit der Mitarbeitenden untereinander?"]
[null,"A4","...die Aufstiegsmöglichkeiten?",null,null,null,null,null,null,null,"Skala:"]
[null,"A4","...die Möglichkeit, sich durch Zunahme des Verantwortungsbereichs zu entwickeln?",null,null,null,null,null,null,null," 1 = sehr klein/tief (- -)"]
[null,"A4","...die Möglichkeit, intern in andere Tätigkeits- und Aufgabenbereiche zu wechseln?",null,null,null,null,null,null,null," 2 = eher klein/tief (-)"]
[null,"A4","...die Möglichkeit eine formalisierte Personalentwicklung zu durchlaufen?",null,null,null,null,null,null,null," 3 = durchschnittlich (o)"]
[null,"A5","...die Unterstützung für die Weiterbildung der Mitarbeitenden?",null,null,null,null,null,null,null," 4 = eher gross/hoch (+)"]
[null,"A6","...Sie die Arbeitszeit-Flexibilität für Arbeitnehmende?",null,null,null,null,null,null,null," 5 = sehr gross/hoch (++)"]
[null,"A6","...die zeitliche Arbeitsbelastung für Arbeitnehmende?"]
[null,"A6","...den Arbeitsdruck für Arbeitnehmende?"]
[null,"A7","...die Arbeitsplatzsicherheit?"]
[]
[null,"B1","...die Attraktivität des Lohnniveaus für das Kader?"]
[null,"B1","...die Attraktivität des Lohnniveaus für das Nicht-Kader?"]
[null,"B2","...das Lohnmodell (Grundlohn + variable Lohnbestandteile) für das Kader "]
[null,"B2","...das Lohnmodell (Grundlohn + variable Lohnbestandteile) für das Nicht-Kader "]
[null,"B3","...die Attraktivität der Sozialleistungen (z.B. Altersvorsorge, Lohnfortzahlung bei Krankheit etc.) und Nebenleistungen (z.B. Bahnabonnemente etc.)?"]
[]
[null,"C1","...das Verhältnis zwischen Mitarbeitenden und Vorgesetzten?"]
[null,"C1","...die Führungsgrundsätze in ihrem Unternehmen?"]
[null,"C1","...die Anerkennung für Leistung (z.B. durch Wertschätzung, Lob)?"]
[null,"C1","...die Entscheidungswege in ihrem Unternehmen hinsichtlich  Schnelligkeit?"]
[null,"C2","...die Qualität und Häufigkeit von Information und Kommunikation innerhalb des Unternehmens?"]
[null,"C3","...die Möglichkeiten, neue Ideen einzubringen und umzusetzen?"]
[null,"C4","...die Identifikation der Mitarbeitenden mit Ihrer Unternehmung?"]
[null,"C4","...die Attraktivität des Leitbildes Ihres Unternehmens?"]
[null,"C4","...die Attraktivität der Produkte für Arbeitnehmende?"]
[null,"C4","...die Attraktivität Ihrer Branche?"]
[null,"C5","...die Work-Life-Balance (z.B. Familienfreundlichkeit, Teilzeitarbeit, standortunabhängiges Arbeiten, Elternurlaub) Ihrer Unternehmung?"]
[]
[null,"D1","...die Verkehrsanbindung des Unternehmens (öffenlticher Verkehr und Individualverkehr)?"]
[null,"D2","...das Image der Region?"]
[null,"D3","...die Präsenz Ihres Unternehmens in der öffentlichen Wahrnehmung (z.B. Zeitungsberichterstattung) in der Region?"]
[null,"D3","...die regionale Verbundenheit von auswärtigen bzw. ausländischen Arbeitskräften?"]
[null,"D3","...Ihre Relocation-Angebote für auswärtige bzw. ausländische Arbeitskräfte und deren Familien (z.B. Informationen zu ausländischen Schulen, Wohnungssuche etc.)?"]
[null,"D4","...die Kooperation / Vernetzung mit anderen Unternehmen in der Region?"]
[null,"D4","...den Austausch mit regionalen Interessenverbänden (z.B. Kammern, Wirtschaftsverbände) und Behörden (z.B. Gemeinde und Kanton)?"]
[null,"D5","...den Bekanntheitsgrad des Unternehmens auf dem relevanten Arbeitsmarkt?"]

{"sheet":"Eingabe Fragebogen","index":9,"n_rows":70,"n_cols":29,"rows_kept":70,"cut":false,"hidden":false,"merged":[]}
[]
[null,null,"Fragen                                          © Avenir Consulting AG",null,null,null,null,null,null,null,null,null,null,null,null,null,null,null,null,null,null,null,null,null,"Zusammenfügung der Eingaben aus den Fragebögen"]
[]
[]
[null,null,"Wie beurteilen Sie…",null,"Ist 1","Ist 2","Ist 3","Ist 4","Ist 5","Ist 6","Ist 7","Mittel","Min","Max",null,"Soll 1","Soll 2","Soll 3","Soll 4","Soll 5","Soll 6","Soll 7","Mittel","Min","Max"]
[]
[null,"A1"," …den Anspruch an die Tätigkeit in Ihrem Unternehmen aus fachlicher Sicht?",null,{"$f":"IF(' Fragebogen (1)'!E7=\"\",\"\",' Fragebogen (1)'!E7)","v":""},{"$f":"IF(' Fragebogen (2)'!E7=\"\",\"\",' Fragebogen (2)'!E7)","v":""},{"$f":"IF(' Fragebogen (3)'!E7=\"\",\"\",' Fragebogen (3)'!E7)","v":""},{"$f":"IF(' Fragebogen (4)'!E7=\"\",\"\",' Fragebogen (4)'!E7)","v":""},{"$f":"IF(' Fragebogen (5)'!E7=\"\",\"\",' Fragebogen (5)'!E7)","v":""},{"$f":"IF(' Fragebogen (6)'!E7=\"\",\"\",' Fragebogen (6)'!E7)","v":""},{"$f":"IF(' Fragebogen (7)'!E7=\"\",\"\",' Fragebogen (7)'!E7)","v":""},{"$f":"IF(AND(E7=\"\",F7=\"\",G7=\"\",H7=\"\",I7=\"\",J7=\"\",K7=\"\"),0,AVERAGE(E7:K7))","v":0},{"$f":"MIN(E7:K7)","v":0},{"$f":"MAX(E7:K7)","v":0},null,{"$f":"IF(' Fragebogen (1)'!G7=\"\",\"\",' Fragebogen (1)'!G7)","v":""},{"$f":"IF(' Fragebogen (2)'!G7=\"\",\"\",' Fragebogen (2)'!G7)","v":""},{"$f":"IF(' Fragebogen (3)'!G7=\"\",\"\",' Fragebogen (3)'!G7)","v":""},{"$f":"IF(' Fragebogen (4)'!G7=\"\",\"\",' Fragebogen (4)'!G7)","v":""},{"$f":"IF(' Fragebogen (5)'!G7=\"\",\"\",' Fragebogen (5)'!G7)","v":""},{"$f":"IF(' Fragebogen (6)'!G7=\"\",\"\",' Fragebogen (6)'!G7)","v":""},{"$f":"IF(' Fragebogen (7)'!G7=\"\",\"\",' Fragebogen (7)'!G7)","v":""},{"$f":"IF(AND(P7=\"\",Q7=\"\",R7=\"\",S7=\"\",T7=\"\",U7=\"\",V7=\"\"),0,AVERAGE(P7:V7))","v":0},{"$f":"MIN(P7:V7)","v":0},{"$f":"MAX(P7:V7)","v":0}]
[null,"A1","...die Vielfältigkeit und den Abwechslungsreichtum des Tätigkeitsfeldes?",null,{"$f":"IF(' Fragebogen (1)'!E8=\"\",\"\",' Fragebogen (1)'!E8)","v":""},{"$f":"IF(' Fragebogen (2)'!E8=\"\",\"\",' Fragebogen (2)'!E8)","v":""},{"$f":"IF(' Fragebogen (3)'!E8=\"\",\"\",' Fragebogen (3)'!E8)","v":""},{"$f":"IF(' Fragebogen (4)'!E8=\"\",\"\",' Fragebogen (4)'!E8)","v":""},{"$f":"IF(' Fragebogen (5)'!E8=\"\",\"\",' Fragebogen (5)'!E8)","v":""},{"$f":"IF(' Fragebogen (6)'!E8=\"\",\"\",' Fragebogen (6)'!E8)","v":""},{"$f":"IF(' Fragebogen (7)'!E8=\"\",\"\",' Fragebogen (7)'!E8)","v":""},{"$f":"IF(AND(E8=\"\",F8=\"\",G8=\"\",H8=\"\",I8=\"\",J8=\"\",K8=\"\"),0,AVERAGE(E8:K8))","v":0},{"$f":"MIN(E8:K8)","v":0},{"$f":"MAX(E8:K8)","v":0},null,{"$f":"IF(' Fragebogen (1)'!G8=\"\",\"\",' Fragebogen (1)'!G8)","v":""},{"$f":"IF(' Fragebogen (2)'!G8=\"\",\"\",' Fragebogen (2)'!G8)","v":""},{"$f":"IF(' Fragebogen (3)'!G8=\"\",\"\",' Fragebogen (3)'!G8)","v":""},{"$f":"IF(' Fragebogen (4)'!G8=\"\",\"\",' Fragebogen (4)'!G8)","v":""},{"$f":"IF(' Fragebogen (5)'!G8=\"\",\"\",' Fragebogen (5)'!G8)","v":""},{"$f":"IF(' Fragebogen (6)'!G8=\"\",\"\",' Fragebogen (6)'!G8)","v":""},{"$f":"IF(' Fragebogen (7)'!G8=\"\",\"\",' Fragebogen (7)'!G8)","v":""},{"$f":"IF(AND(P8=\"\",Q8=\"\",R8=\"\",S8=\"\",T8=\"\",U8=\"\",V8=\"\"),0,AVERAGE(P8:V8))","v":0},{"$f":"MIN(P8:V8)","v":0},{"$f":"MAX(P8:V8)","v":0},null,null,null,"Skala:"]
[null,"A2","...die Grösse des Gestaltungsspielraum der Mitarbeitenden?",null,{"$f":"IF(' Fragebogen (1)'!E9=\"\",\"\",' Fragebogen (1)'!E9)","v":""},{"$f":"IF(' Fragebogen (2)'!E9=\"\",\"\",' Fragebogen (2)'!E9)","v":""},{"$f":"IF(' Fragebogen (3)'!E9=\"\",\"\",' Fragebogen (3)'!E9)","v":""},{"$f":"IF(' Fragebogen (4)'!E9=\"\",\"\",' Fragebogen (4)'!E9)","v":""},{"$f":"IF(' Fragebogen (5)'!E9=\"\",\"\",' Fragebogen (5)'!E9)","v":""},{"$f":"IF(' Fragebogen (6)'!E9=\"\",\"\",' Fragebogen (6)'!E9)","v":""},{"$f":"IF(' Fragebogen (7)'!E9=\"\",\"\",' Fragebogen (7)'!E9)","v":""},{"$f":"IF(AND(E9=\"\",F9=\"\",G9=\"\",H9=\"\",I9=\"\",J9=\"\",K9=\"\"),0,AVERAGE(E9:K9))","v":0},0,0,null,{"$f":"IF(' Fragebogen (1)'!G9=\"\",\"\",' Fragebogen (1)'!G9)","v":""},{"$f":"IF(' Fragebogen (2)'!G9=\"\",\"\",' Fragebogen (2)'!G9)","v":""},{"$f":"IF(' Fragebogen (3)'!G9=\"\",\"\",' Fragebogen (3)'!G9)","v":""},{"$f":"IF(' Fragebogen (4)'!G9=\"\",\"\",' Fragebogen (4)'!G9)","v":""},{"$f":"IF(' Fragebogen (5)'!G9=\"\",\"\",' Fragebogen (5)'!G9)","v":""},{"$f":"IF(' Fragebogen (6)'!G9=\"\",\"\",' Fragebogen (6)'!G9)","v":""},{"$f":"IF(' Fragebogen (7)'!G9=\"\",\"\",' Fragebogen (7)'!G9)","v":""},{"$f":"IF(AND(P9=\"\",Q9=\"\",R9=\"\",S9=\"\",T9=\"\",U9=\"\",V9=\"\"),0,AVERAGE(P9:V9))","v":0},0,0,null,null,null," 1 = sehr klein/tief (- -)"]
[null,"A2","...den Eigenverantwortungsgrad des Einzelnen bei seiner Tätigkeit?",null,{"$f":"IF(' Fragebogen (1)'!E10=\"\",\"\",' Fragebogen (1)'!E10)","v":""},{"$f":"IF(' Fragebogen (2)'!E10=\"\",\"\",' Fragebogen (2)'!E10)","v":""},{"$f":"IF(' Fragebogen (3)'!E10=\"\",\"\",' Fragebogen (3)'!E10)","v":""},{"$f":"IF(' Fragebogen (4)'!E10=\"\",\"\",' Fragebogen (4)'!E10)","v":""},{"$f":"IF(' Fragebogen (5)'!E10=\"\",\"\",' Fragebogen (5)'!E10)","v":""},{"$f":"IF(' Fragebogen (6)'!E10=\"\",\"\",' Fragebogen (6)'!E10)","v":""},{"$f":"IF(' Fragebogen (7)'!E10=\"\",\"\",' Fragebogen (7)'!E10)","v":""},0,0,0,null,{"$f":"IF(' Fragebogen (1)'!G10=\"\",\"\",' Fragebogen (1)'!G10)","v":""},{"$f":"IF(' Fragebogen (2)'!G10=\"\",\"\",' Fragebogen (2)'!G10)","v":""},{"$f":"IF(' Fragebogen (3)'!G10=\"\",\"\",' Fragebogen (3)'!G10)","v":""},{"$f":"IF(' Fragebogen (4)'!G10=\"\",\"\",' Fragebogen (4)'!G10)","v":""},{"$f":"IF(' Fragebogen (5)'!G10=\"\",\"\",' Fragebogen (5)'!G10)","v":""},{"$f":"IF(' Fragebogen (6)'!G10=\"\",\"\",' Fragebogen (6)'!G10)","v":""},{"$f":"IF(' Fragebogen (7)'!G10=\"\",\"\",' Fragebogen (7)'!G10)","v":""},0,0,0,null,null,null," 2 = eher klein/tief (-)"]
[null,"A3","...die Zusammenarbeit der Mitarbeitenden untereinander?",null,{"$f":"IF(' Fragebogen (1)'!E11=\"\",\"\",' Fragebogen (1)'!E11)","v":""},{"$f":"IF(' Fragebogen (2)'!E11=\"\",\"\",' Fragebogen (2)'!E11)","v":""},{"$f":"IF(' Fragebogen (3)'!E11=\"\",\"\",' Fragebogen (3)'!E11)","v":""},{"$f":"IF(' Fragebogen (4)'!E11=\"\",\"\",' Fragebogen (4)'!E11)","v":""},{"$f":"IF(' Fragebogen (5)'!E11=\"\",\"\",' Fragebogen (5)'!E11)","v":""},{"$f":"IF(' Fragebogen (6)'!E11=\"\",\"\",' Fragebogen (6)'!E11)","v":""},{"$f":"IF(' Fragebogen (7)'!E11=\"\",\"\",' Fragebogen (7)'!E11)","v":""},0,0,0,null,{"$f":"IF(' Fragebogen (1)'!G11=\"\",\"\",' Fragebogen (1)'!G11)","v":""},{"$f":"IF(' Fragebogen (2)'!G11=\"\",\"\",' Fragebogen (2)'!G11)","v":""},{"$f":"IF(' Fragebogen (3)'!G11=\"\",\"\",' Fragebogen (3)'!G11)","v":""},{"$f":"IF(' Fragebogen (4)'!G11=\"\",\"\",' Fragebogen (4)'!G11)","v":""},{"$f":"IF(' Fragebogen (5)'!G11=\"\",\"\",' Fragebogen (5)'!G11)","v":""},{"$f":"IF(' Fragebogen (6)'!G11=\"\",\"\",' Fragebogen (6)'!G11)","v":""},{"$f":"IF(' Fragebogen (7)'!G11=\"\",\"\",' Fragebogen (7)'!G11)","v":""},0,0,0,null,null,null," 3 = durchschnittlich (o)"]
[null,"A4","...die Aufstiegsmöglichkeiten?",null,{"$f":"IF(' Fragebogen (1)'!E12=\"\",\"\",' Fragebogen (1)'!E12)","v":""},{"$f":"IF(' Fragebogen (2)'!E12=\"\",\"\",' Fragebogen (2)'!E12)","v":""},{"$f":"IF(' Fragebogen (3)'!E12=\"\",\"\",' Fragebogen (3)'!E12)","v":""},{"$f":"IF(' Fragebogen (4)'!E12=\"\",\"\",' Fragebogen (4)'!E12)","v":""},{"$f":"IF(' Fragebogen (5)'!E12=\"\",\"\",' Fragebogen (5)'!E12)","v":""},{"$f":"IF(' Fragebogen (6)'!E12=\"\",\"\",' Fragebogen (6)'!E12)","v":""},{"$f":"IF(' Fragebogen (7)'!E12=\"\",\"\",' Fragebogen (7)'!E12)","v":""},0,0,0,null,{"$f":"IF(' Fragebogen (1)'!G12=\"\",\"\",' Fragebogen (1)'!G12)","v":""},{"$f":"IF(' Fragebogen (2)'!G12=\"\",\"\",' Fragebogen (2)'!G12)","v":""},{"$f":"IF(' Fragebogen (3)'!G12=\"\",\"\",' Fragebogen (3)'!G12)","v":""},{"$f":"IF(' Fragebogen (4)'!G12=\"\",\"\",' Fragebogen (4)'!G12)","v":""},{"$f":"IF(' Fragebogen (5)'!G12=\"\",\"\",' Fragebogen (5)'!G12)","v":""},{"$f":"IF(' Fragebogen (6)'!G12=\"\",\"\",' Fragebogen (6)'!G12)","v":""},{"$f":"IF(' Fragebogen (7)'!G12=\"\",\"\",' Fragebogen (7)'!G12)","v":""},0,0,0,null,null,null," 4 = eher gross/hoch (+)"]
[null,"A4","...die Möglichkeit, sich durch Zunahme des Verantwortungsbereichs zu entwickeln?",null,{"$f":"IF(' Fragebogen (1)'!E13=\"\",\"\",' Fragebogen (1)'!E13)","v":""},{"$f":"IF(' Fragebogen (2)'!E13=\"\",\"\",' Fragebogen (2)'!E13)","v":""},{"$f":"IF(' Fragebogen (3)'!E13=\"\",\"\",' Fragebogen (3)'!E13)","v":""},{"$f":"IF(' Fragebogen (4)'!E13=\"\",\"\",' Fragebogen (4)'!E13)","v":""},{"$f":"IF(' Fragebogen (5)'!E13=\"\",\"\",' Fragebogen (5)'!E13)","v":""},{"$f":"IF(' Fragebogen (6)'!E13=\"\",\"\",' Fragebogen (6)'!E13)","v":""},{"$f":"IF(' Fragebogen (7)'!E13=\"\",\"\",' Fragebogen (7)'!E13)","v":""},0,0,0,null,{"$f":"IF(' Fragebogen (1)'!G13=\"\",\"\",' Fragebogen (1)'!G13)","v":""},{"$f":"IF(' Fragebogen (2)'!G13=\"\",\"\",' Fragebogen (2)'!G13)","v":""},{"$f":"IF(' Fragebogen (3)'!G13=\"\",\"\",' Fragebogen (3)'!G13)","v":""},{"$f":"IF(' Fragebogen (4)'!G13=\"\",\"\",' Fragebogen (4)'!G13)","v":""},{"$f":"IF(' Fragebogen (5)'!G13=\"\",\"\",' Fragebogen (5)'!G13)","v":""},{"$f":"IF(' Fragebogen (6)'!G13=\"\",\"\",' Fragebogen (6)'!G13)","v":""},{"$f":"IF(' Fragebogen (7)'!G13=\"\",\"\",' Fragebogen (7)'!G13)","v":""},0,0,0,null,null,null," 5 = sehr gross/hoch (++)"]
[null,"A4","...die Möglichkeit, intern in andere Tätigkeits- und Aufgabenbereiche zu wechseln?",null,{"$f":"IF(' Fragebogen (1)'!E14=\"\",\"\",' Fragebogen (1)'!E14)","v":""},{"$f":"IF(' Fragebogen (2)'!E14=\"\",\"\",' Fragebogen (2)'!E14)","v":""},{"$f":"IF(' Fragebogen (3)'!E14=\"\",\"\",' Fragebogen (3)'!E14)","v":""},{"$f":"IF(' Fragebogen (4)'!E14=\"\",\"\",' Fragebogen (4)'!E14)","v":""},{"$f":"IF(' Fragebogen (5)'!E14=\"\",\"\",' Fragebogen (5)'!E14)","v":""},{"$f":"IF(' Fragebogen (6)'!E14=\"\",\"\",' Fragebogen (6)'!E14)","v":""},{"$f":"IF(' Fragebogen (7)'!E14=\"\",\"\",' Fragebogen (7)'!E14)","v":""},0,0,0,null,{"$f":"IF(' Fragebogen (1)'!G14=\"\",\"\",' Fragebogen (1)'!G14)","v":""},{"$f":"IF(' Fragebogen (2)'!G14=\"\",\"\",' Fragebogen (2)'!G14)","v":""},{"$f":"IF(' Fragebogen (3)'!G14=\"\",\"\",' Fragebogen (3)'!G14)","v":""},{"$f":"IF(' Fragebogen (4)'!G14=\"\",\"\",' Fragebogen (4)'!G14)","v":""},{"$f":"IF(' Fragebogen (5)'!G14=\"\",\"\",' Fragebogen (5)'!G14)","v":""},{"$f":"IF(' Fragebogen (6)'!G14=\"\",\"\",' Fragebogen (6)'!G14)","v":""},{"$f":"IF(' Fragebogen (7)'!G14=\"\",\"\",' Fragebogen (7)'!G14)","v":""},0,0,0]
[null,"A4","...die Möglichkeit eine formalisierte Personalentwicklung zu durchlaufen?",null,{"$f":"IF(' Fragebogen (1)'!E15=\"\",\"\",' Fragebogen (1)'!E15)","v":""},{"$f":"IF(' Fragebogen (2)'!E15=\"\",\"\",' Fragebogen (2)'!E15)","v":""},{"$f":"IF(' Fragebogen (3)'!E15=\"\",\"\",' Fragebogen (3)'!E15)","v":""},{"$f":"IF(' Fragebogen (4)'!E15=\"\",\"\",' Fragebogen (4)'!E15)","v":""},{"$f":"IF(' Fragebogen (5)'!E15=\"\",\"\",' Fragebogen (5)'!E15)","v":""},{"$f":"IF(' Fragebogen (6)'!E15=\"\",\"\",' Fragebogen (6)'!E15)","v":""},{"$f":"IF(' Fragebogen (7)'!E15=\"\",\"\",' Fragebogen (7)'!E15)","v":""},0,0,0,null,{"$f":"IF(' Fragebogen (1)'!G15=\"\",\"\",' Fragebogen (1)'!G15)","v":""},{"$f":"IF(' Fragebogen (2)'!G15=\"\",\"\",' Fragebogen (2)'!G15)","v":""},{"$f":"IF(' Fragebogen (3)'!G15=\"\",\"\",' Fragebogen (3)'!G15)","v":""},{"$f":"IF(' Fragebogen (4)'!G15=\"\",\"\",' Fragebogen (4)'!G15)","v":""},{"$f":"IF(' Fragebogen (5)'!G15=\"\",\"\",' Fragebogen (5)'!G15)","v":""},{"$f":"IF(' Fragebogen (6)'!G15=\"\",\"\",' Fragebogen (6)'!G15)","v":""},{"$f":"IF(' Fragebogen (7)'!G15=\"\",\"\",' Fragebogen (7)'!G15)","v":""},0,0,0]
[null,"A5","...die Unterstützung für die Weiterbildung der Mitarbeitenden?",null,{"$f":"IF(' Fragebogen (1)'!E16=\"\",\"\",' Fragebogen (1)'!E16)","v":""},{"$f":"IF(' Fragebogen (2)'!E16=\"\",\"\",' Fragebogen (2)'!E16)","v":""},{"$f":"IF(' Fragebogen (3)'!E16=\"\",\"\",' Fragebogen (3)'!E16)","v":""},{"$f":"IF(' Fragebogen (4)'!E16=\"\",\"\",' Fragebogen (4)'!E16)","v":""},{"$f":"IF(' Fragebogen (5)'!E16=\"\",\"\",' Fragebogen (5)'!E16)","v":""},{"$f":"IF(' Fragebogen (6)'!E16=\"\",\"\",' Fragebogen (6)'!E16)","v":""},{"$f":"IF(' Fragebogen (7)'!E16=\"\",\"\",' Fragebogen (7)'!E16)","v":""},0,0,0,null,{"$f":"IF(' Fragebogen (1)'!G16=\"\",\"\",' Fragebogen (1)'!G16)","v":""},{"$f":"IF(' Fragebogen (2)'!G16=\"\",\"\",' Fragebogen (2)'!G16)","v":""},{"$f":"IF(' Fragebogen (3)'!G16=\"\",\"\",' Fragebogen (3)'!G16)","v":""},{"$f":"IF(' Fragebogen (4)'!G16=\"\",\"\",' Fragebogen (4)'!G16)","v":""},{"$f":"IF(' Fragebogen (5)'!G16=\"\",\"\",' Fragebogen (5)'!G16)","v":""},{"$f":"IF(' Fragebogen (6)'!G16=\"\",\"\",' Fragebogen (6)'!G16)","v":""},{"$f":"IF(' Fragebogen (7)'!G16=\"\",\"\",' Fragebogen (7)'!G16)","v":""},0,0,0]
[null,"A6","...die Arbeitszeit-Flexibilität für Arbeitnehmende?",null,{"$f":"IF(' Fragebogen (1)'!E17=\"\",\"\",' Fragebogen (1)'!E17)","v":""},{"$f":"IF(' Fragebogen (2)'!E17=\"\",\"\",' Fragebogen (2)'!E17)","v":""},{"$f":"IF(' Fragebogen (3)'!E17=\"\",\"\",' Fragebogen (3)'!E17)","v":""},{"$f":"IF(' Fragebogen (4)'!E17=\"\",\"\",' Fragebogen (4)'!E17)","v":""},{"$f":"IF(' Fragebogen (5)'!E17=\"\",\"\",' Fragebogen (5)'!E17)","v":""},{"$f":"IF(' Fragebogen (6)'!E17=\"\",\"\",' Fragebogen (6)'!E17)","v":""},{"$f":"IF(' Fragebogen (7)'!E17=\"\",\"\",' Fragebogen (7)'!E17)","v":""},0,0,0,null,{"$f":"IF(' Fragebogen (1)'!G17=\"\",\"\",' Fragebogen (1)'!G17)","v":""},{"$f":"IF(' Fragebogen (2)'!G17=\"\",\"\",' Fragebogen (2)'!G17)","v":""},{"$f":"IF(' Fragebogen (3)'!G17=\"\",\"\",' Fragebogen (3)'!G17)","v":""},{"$f":"IF(' Fragebogen (4)'!G17=\"\",\"\",' Fragebogen (4)'!G17)","v":""},{"$f":"IF(' Fragebogen (5)'!G17=\"\",\"\",' Fragebogen (5)'!G17)","v":""},{"$f":"IF(' Fragebogen (6)'!G17=\"\",\"\",' Fragebogen (6)'!G17)","v":""},{"$f":"IF(' Fragebogen (7)'!G17=\"\",\"\",' Fragebogen (7)'!G17)","v":""},0,0,0]
[null,"A6","...die zeitliche Arbeitsbelastung für Arbeitnehmende?",null,{"$f":"IF(' Fragebogen (1)'!E18=\"\",\"\",' Fragebogen (1)'!E18)","v":""},{"$f":"IF(' Fragebogen (2)'!E18=\"\",\"\",' Fragebogen (2)'!E18)","v":""},{"$f":"IF(' Fragebogen (3)'!E18=\"\",\"\",' Fragebogen (3)'!E18)","v":""},{"$f":"IF(' Fragebogen (4)'!E18=\"\",\"\",' Fragebogen (4)'!E18)","v":""},{"$f":"IF(' Fragebogen (5)'!E18=\"\",\"\",' Fragebogen (5)'!E18)","v":""},{"$f":"IF(' Fragebogen (6)'!E18=\"\",\"\",' Fragebogen (6)'!E18)","v":""},{"$f":"IF(' Fragebogen (7)'!E18=\"\",\"\",' Fragebogen (7)'!E18)","v":""},0,0,0,null,{"$f":"IF(' Fragebogen (1)'!G18=\"\",\"\",' Fragebogen (1)'!G18)","v":""},{"$f":"IF(' Fragebogen (2)'!G18=\"\",\"\",' Fragebogen (2)'!G18)","v":""},{"$f":"IF(' Fragebogen (3)'!G18=\"\",\"\",' Fragebogen (3)'!G18)","v":""},{"$f":"IF(' Fragebogen (4)'!G18=\"\",\"\",' Fragebogen (4)'!G18)","v":""},{"$f":"IF(' Fragebogen (5)'!G18=\"\",\"\",' Fragebogen (5)'!G18)","v":""},{"$f":"IF(' Fragebogen (6)'!G18=\"\",\"\",' Fragebogen (6)'!G18)","v":""},{"$f":"IF(' Fragebogen (7)'!G18=\"\",\"\",' Fragebogen (7)'!G18)","v":""},0,0,0]
[null,"A6","...den Arbeitsdruck für Arbeitnehmende?",null,{"$f":"IF(' Fragebogen (1)'!E19=\"\",\"\",' Fragebogen (1)'!E19)","v":""},{"$f":"IF(' Fragebogen (2)'!E19=\"\",\"\",' Fragebogen (2)'!E19)","v":""},{"$f":"IF(' Fragebogen (3)'!E19=\"\",\"\",' Fragebogen (3)'!E19)","v":""},{"$f":"IF(' Fragebogen (4)'!E19=\"\",\"\",' Fragebogen (4)'!E19)","v":""},{"$f":"IF(' Fragebogen (5)'!E19=\"\",\"\",' Fragebogen (5)'!E19)","v":""},{"$f":"IF(' Fragebogen (6)'!E19=\"\",\"\",' Fragebogen (6)'!E19)","v":""},{"$f":"IF(' Fragebogen (7)'!E19=\"\",\"\",' Fragebogen (7)'!E19)","v":""},0,0,0,null,{"$f":"IF(' Fragebogen (1)'!G19=\"\",\"\",' Fragebogen (1)'!G19)","v":""},{"$f":"IF(' Fragebogen (2)'!G19=\"\",\"\",' Fragebogen (2)'!G19)","v":""},{"$f":"IF(' Fragebogen (3)'!G19=\"\",\"\",' Fragebogen (3)'!G19)","v":""},{"$f":"IF(' Fragebogen (4)'!G19=\"\",\"\",' Fragebogen (4)'!G19)","v":""},{"$f":"IF(' Fragebogen (5)'!G19=\"\",\"\",' Fragebogen (5)'!G19)","v":""},{"$f":"IF(' Fragebogen (6)'!G19=\"\",\"\",' Fragebogen (6)'!G19)","v":""},{"$f":"IF(' Fragebogen (7)'!G19=\"\",\"\",' Fragebogen (7)'!G19)","v":""},0,0,0]
[null,"A7","...die Arbeitsplatzsicherheit?",null,{"$f":"IF(' Fragebogen (1)'!E20=\"\",\"\",' Fragebogen (1)'!E20)","v":""},{"$f":"IF(' Fragebogen (2)'!E20=\"\",\"\",' Fragebogen (2)'!E20)","v":""},{"$f":"IF(' Fragebogen (3)'!E20=\"\",\"\",' Fragebogen (3)'!E20)","v":""},{"$f":"IF(' Fragebogen (4)'!E20=\"\",\"\",' Fragebogen (4)'!E20)","v":""},{"$f":"IF(' Fragebogen (5)'!E20=\"\",\"\",' Fragebogen (5)'!E20)","v":""},{"$f":"IF(' Fragebogen (6)'!E20=\"\",\"\",' Fragebogen (6)'!E20)","v":""},{"$f":"IF(' Fragebogen (7)'!E20=\"\",\"\",' Fragebogen (7)'!E20)","v":""},0,0,0,null,{"$f":"IF(' Fragebogen (1)'!G20=\"\",\"\",' Fragebogen (1)'!G20)","v":""},{"$f":"IF(' Fragebogen (2)'!G20=\"\",\"\",' Fragebogen (2)'!G20)","v":""},{"$f":"IF(' Fragebogen (3)'!G20=\"\",\"\",' Fragebogen (3)'!G20)","v":""},{"$f":"IF(' Fragebogen (4)'!G20=\"\",\"\",' Fragebogen (4)'!G20)","v":""},{"$f":"IF(' Fragebogen (5)'!G20=\"\",\"\",' Fragebogen (5)'!G20)","v":""},{"$f":"IF(' Fragebogen (6)'!G20=\"\",\"\",' Fragebogen (6)'!G20)","v":""},{"$f":"IF(' Fragebogen (7)'!G20=\"\",\"\",' Fragebogen (7)'!G20)","v":""},{"$f":"IF(AND(P20=\"\",Q20=\"\",R20=\"\",S20=\"\",T20=\"\",U20=\"\",V20=\"\"),0,AVERAGE(P20:V20))","v":0},0,0]
[]
[null,"B1","...die Attraktivität des Lohnniveaus für das Kader?",null,{"$f":"IF(' Fragebogen (1)'!E22=\"\",\"\",' Fragebogen (1)'!E22)","v":""},{"$f":"IF(' Fragebogen (2)'!E22=\"\",\"\",' Fragebogen (2)'!E22)","v":""},{"$f":"IF(' Fragebogen (3)'!E22=\"\",\"\",' Fragebogen (3)'!E22)","v":""},{"$f":"IF(' Fragebogen (4)'!E22=\"\",\"\",' Fragebogen (4)'!E22)","v":""},{"$f":"IF(' Fragebogen (5)'!E22=\"\",\"\",' Fragebogen (5)'!E22)","v":""},{"$f":"IF(' Fragebogen (6)'!E22=\"\",\"\",' Fragebogen (6)'!E22)","v":""},{"$f":"IF(' Fragebogen (7)'!E22=\"\",\"\",' Fragebogen (7)'!E22)","v":""},{"$f":"IF(AND(E22=\"\",F22=\"\",G22=\"\",H22=\"\",I22=\"\",J22=\"\",K22=\"\"),0,AVERAGE(E22:K22))","v":0},{"$f":"MIN(E22:K22)","v":0},{"$f":"MAX(E22:K22)","v":0},null,{"$f":"IF(' Fragebogen (1)'!G22=\"\",\"\",' Fragebogen (1)'!G22)","v":""},{"$f":"IF(' Fragebogen (2)'!G22=\"\",\"\",' Fragebogen (2)'!G22)","v":""},{"$f":"IF(' Fragebogen (3)'!G22=\"\",\"\",' Fragebogen (3)'!G22)","v":""},{"$f":"IF(' Fragebogen (4)'!G22=\"\",\"\",' Fragebogen (4)'!G22)","v":""},{"$f":"IF(' Fragebogen (5)'!G22=\"\",\"\",' Fragebogen (5)'!G22)","v":""},{"$f":"IF(' Fragebogen (6)'!G22=\"\",\"\",' Fragebogen (6)'!G22)","v":""},{"$f":"IF(' Fragebogen (7)'!G22=\"\",\"\",' Fragebogen (7)'!G22)","v":""},{"$f":"IF(AND(P22=\"\",Q22=\"\",R22=\"\",S22=\"\",T22=\"\",U22=\"\",V22=\"\"),0,AVERAGE(P22:V22))","v":0},{"$f":"MIN(P22:V22)","v":0},{"$f":"MAX(P22:V22)","v":0}]
[null,"B1","...die Attraktivität des Lohnniveaus für das Nicht-Kader?",null,{"$f":"IF(' Fragebogen (1)'!E23=\"\",\"\",' Fragebogen (1)'!E23)","v":""},{"$f":"IF(' Fragebogen (2)'!E23=\"\",\"\",' Fragebogen (2)'!E23)","v":""},{"$f":"IF(' Fragebogen (3)'!E23=\"\",\"\",' Fragebogen (3)'!E23)","v":""},{"$f":"IF(' Fragebogen (4)'!E23=\"\",\"\",' Fragebogen (4)'!E23)","v":""},{"$f":"IF(' Fragebogen (5)'!E23=\"\",\"\",' Fragebogen (5)'!E23)","v":""},{"$f":"IF(' Fragebogen (6)'!E23=\"\",\"\",' Fragebogen (6)'!E23)","v":""},{"$f":"IF(' Fragebogen (7)'!E23=\"\",\"\",' Fragebogen (7)'!E23)","v":""},{"$f":"IF(AND(E23=\"\",F23=\"\",G23=\"\",H23=\"\",I23=\"\",J23=\"\",K23=\"\"),0,AVERAGE(E23:K23))","v":0},{"$f":"MIN(E23:K23)","v":0},{"$f":"MAX(E23:K23)","v":0},null,{"$f":"IF(' Fragebogen (1)'!G23=\"\",\"\",' Fragebogen (1)'!G23)","v":""},{"$f":"IF(' Fragebogen (2)'!G23=\"\",\"\",' Fragebogen (2)'!G23)","v":""},{"$f":"IF(' Fragebogen (3)'!G23=\"\",\"\",' Fragebogen (3)'!G23)","v":""},{"$f":"IF(' Fragebogen (4)'!G23=\"\",\"\",' Fragebogen (4)'!G23)","v":""},{"$f":"IF(' Fragebogen (5)'!G23=\"\",\"\",' Fragebogen (5)'!G23)","v":""},{"$f":"IF(' Fragebogen (6)'!G23=\"\",\"\",' Fragebogen (6)'!G23)","v":""},{"$f":"IF(' Fragebogen (7)'!G23=\"\",\"\",' Fragebogen (7)'!G23)","v":""},{"$f":"IF(AND(P23=\"\",Q23=\"\",R23=\"\",S23=\"\",T23=\"\",U23=\"\",V23=\"\"),0,AVERAGE(P23:V23))","v":0},{"$f":"MIN(P23:V23)","v":0},{"$f":"MAX(P23:V23)","v":0}]
[null,"B2","...das Lohnmodell (Grundlohn + variable Lohnbestandteile) für das Kader ",null,{"$f":"IF(' Fragebogen (1)'!E24=\"\",\"\",' Fragebogen (1)'!E24)","v":""},{"$f":"IF(' Fragebogen (2)'!E24=\"\",\"\",' Fragebogen (2)'!E24)","v":""},{"$f":"IF(' Fragebogen (3)'!E24=\"\",\"\",' Fragebogen (3)'!E24)","v":""},{"$f":"IF(' Fragebogen (4)'!E24=\"\",\"\",' Fragebogen (4)'!E24)","v":""},{"$f":"IF(' Fragebogen (5)'!E24=\"\",\"\",' Fragebogen (5)'!E24)","v":""},{"$f":"IF(' Fragebogen (6)'!E24=\"\",\"\",' Fragebogen (6)'!E24)","v":""},{"$f":"IF(' Fragebogen (7)'!E24=\"\",\"\",' Fragebogen (7)'!E24)","v":""},0,{"$f":"MIN(E24:K24)","v":0},{"$f":"MAX(E24:K24)","v":0},null,{"$f":"IF(' Fragebogen (1)'!G24=\"\",\"\",' Fragebogen (1)'!G24)","v":""},{"$f":"IF(' Fragebogen (2)'!G24=\"\",\"\",' Fragebogen (2)'!G24)","v":""},{"$f":"IF(' Fragebogen (3)'!G24=\"\",\"\",' Fragebogen (3)'!G24)","v":""},{"$f":"IF(' Fragebogen (4)'!G24=\"\",\"\",' Fragebogen (4)'!G24)","v":""},{"$f":"IF(' Fragebogen (5)'!G24=\"\",\"\",' Fragebogen (5)'!G24)","v":""},{"$f":"IF(' Fragebogen (6)'!G24=\"\",\"\",' Fragebogen (6)'!G24)","v":""},{"$f":"IF(' Fragebogen (7)'!G24=\"\",\"\",' Fragebogen (7)'!G24)","v":""},0,{"$f":"MIN(P24:V24)","v":0},{"$f":"MAX(P24:V24)","v":0}]
[null,"B2","...das Lohnmodell (Grundlohn + variable Lohnbestandteile) für das Nicht-Kader ",null,{"$f":"IF(' Fragebogen (1)'!E25=\"\",\"\",' Fragebogen (1)'!E25)","v":""},{"$f":"IF(' Fragebogen (2)'!E25=\"\",\"\",' Fragebogen (2)'!E25)","v":""},{"$f":"IF(' Fragebogen (3)'!E25=\"\",\"\",' Fragebogen (3)'!E25)","v":""},{"$f":"IF(' Fragebogen (4)'!E25=\"\",\"\",' Fragebogen (4)'!E25)","v":""},{"$f":"IF(' Fragebogen (5)'!E25=\"\",\"\",' Fragebogen (5)'!E25)","v":""},{"$f":"IF(' Fragebogen (6)'!E25=\"\",\"\",' Fragebogen (6)'!E25)","v":""},{"$f":"IF(' Fragebogen (7)'!E25=\"\",\"\",' Fragebogen (7)'!E25)","v":""},0,{"$f":"MIN(E25:K25)","v":0},{"$f":"MAX(E25:K25)","v":0},null,{"$f":"IF(' Fragebogen (1)'!G25=\"\",\"\",' Fragebogen (1)'!G25)","v":""},{"$f":"IF(' Fragebogen (2)'!G25=\"\",\"\",' Fragebogen (2)'!G25)","v":""},{"$f":"IF(' Fragebogen (3)'!G25=\"\",\"\",' Fragebogen (3)'!G25)","v":""},{"$f":"IF(' Fragebogen (4)'!G25=\"\",\"\",' Fragebogen (4)'!G25)","v":""},{"$f":"IF(' Fragebogen (5)'!G25=\"\",\"\",' Fragebogen (5)'!G25)","v":""},{"$f":"IF(' Fragebogen (6)'!G25=\"\",\"\",' Fragebogen (6)'!G25)","v":""},{"$f":"IF(' Fragebogen (7)'!G25=\"\",\"\",' Fragebogen (7)'!G25)","v":""},0,{"$f":"MIN(P25:V25)","v":0},{"$f":"MAX(P25:V25)","v":0}]
[null,"B3","...die Attraktivität der Sozialleistungen (z.B. Altersvorsorge, Lohnfortzahlung bei Krankheit etc.) und Nebenleistungen (z.B. Bahnabonnemente etc.)?",null,{"$f":"IF(' Fragebogen (1)'!E26=\"\",\"\",' Fragebogen (1)'!E26)","v":""},{"$f":"IF(' Fragebogen (2)'!E26=\"\",\"\",' Fragebogen (2)'!E26)","v":""},{"$f":"IF(' Fragebogen (3)'!E26=\"\",\"\",' Fragebogen (3)'!E26)","v":""},{"$f":"IF(' Fragebogen (4)'!E26=\"\",\"\",' Fragebogen (4)'!E26)","v":""},{"$f":"IF(' Fragebogen (5)'!E26=\"\",\"\",' Fragebogen (5)'!E26)","v":""},{"$f":"IF(' Fragebogen (6)'!E26=\"\",\"\",' Fragebogen (6)'!E26)","v":""},{"$f":"IF(' Fragebogen (7)'!E26=\"\",\"\",' Fragebogen (7)'!E26)","v":""},{"$f":"IF(AND(E26=\"\",F26=\"\",G26=\"\",H26=\"\",I26=\"\",J26=\"\",K26=\"\"),0,AVERAGE(E26:K26))","v":0},{"$f":"MIN(E26:K26)","v":0},{"$f":"MAX(E26:K26)","v":0},null,{"$f":"IF(' Fragebogen (1)'!G26=\"\",\"\",' Fragebogen (1)'!G26)","v":""},{"$f":"IF(' Fragebogen (2)'!G26=\"\",\"\",' Fragebogen (2)'!G26)","v":""},{"$f":"IF(' Fragebogen (3)'!G26=\"\",\"\",' Fragebogen (3)'!G26)","v":""},{"$f":"IF(' Fragebogen (4)'!G26=\"\",\"\",' Fragebogen (4)'!G26)","v":""},{"$f":"IF(' Fragebogen (5)'!G26=\"\",\"\",' Fragebogen (5)'!G26)","v":""},{"$f":"IF(' Fragebogen (6)'!G26=\"\",\"\",' Fragebogen (6)'!G26)","v":""},{"$f":"IF(' Fragebogen (7)'!G26=\"\",\"\",' Fragebogen (7)'!G26)","v":""},{"$f":"IF(AND(P26=\"\",Q26=\"\",R26=\"\",S26=\"\",T26=\"\",U26=\"\",V26=\"\"),0,AVERAGE(P26:V26))","v":0},{"$f":"MIN(P26:V26)","v":0},{"$f":"MAX(P26:V26)","v":0}]
[]
[null,"C1","...das Verhältnis zwischen Mitarbeitenden und Vorgesetzten?",null,{"$f":"IF(' Fragebogen (1)'!E28=\"\",\"\",' Fragebogen (1)'!E28)","v":""},{"$f":"IF(' Fragebogen (2)'!E28=\"\",\"\",' Fragebogen (2)'!E28)","v":""},{"$f":"IF(' Fragebogen (3)'!E28=\"\",\"\",' Fragebogen (3)'!E28)","v":""},{"$f":"IF(' Fragebogen (4)'!E28=\"\",\"\",' Fragebogen (4)'!E28)","v":""},{"$f":"IF(' Fragebogen (5)'!E28=\"\",\"\",' Fragebogen (5)'!E28)","v":""},{"$f":"IF(' Fragebogen (6)'!E28=\"\",\"\",' Fragebogen (6)'!E28)","v":""},{"$f":"IF(' Fragebogen (7)'!E28=\"\",\"\",' Fragebogen (7)'!E28)","v":""},{"$f":"IF(AND(E28=\"\",F28=\"\",G28=\"\",H28=\"\",I28=\"\",J28=\"\",K28=\"\"),0,AVERAGE(E28:K28))","v":0},{"$f":"MIN(E28:K28)","v":0},{"$f":"MAX(E28:K28)","v":0},null,{"$f":"IF(' Fragebogen (1)'!G28=\"\",\"\",' Fragebogen (1)'!G28)","v":""},{"$f":"IF(' Fragebogen (2)'!G28=\"\",\"\",' Fragebogen (2)'!G28)","v":""},{"$f":"IF(' Fragebogen (3)'!G28=\"\",\"\",' Fragebogen (3)'!G28)","v":""},{"$f":"IF(' Fragebogen (4)'!G28=\"\",\"\",' Fragebogen (4)'!G28)","v":""},{"$f":"IF(' Fragebogen (5)'!G28=\"\",\"\",' Fragebogen (5)'!G28)","v":""},{"$f":"IF(' Fragebogen (6)'!G28=\"\",\"\",' Fragebogen (6)'!G28)","v":""},{"$f":"IF(' Fragebogen (7)'!G28=\"\",\"\",' Fragebogen (7)'!G28)","v":""},{"$f":"IF(AND(P28=\"\",Q28=\"\",R28=\"\",S28=\"\",T28=\"\",U28=\"\",V28=\"\"),0,AVERAGE(P28:V28))","v":0},{"$f":"MIN(P28:V28)","v":0},{"$f":"MAX(P28:V28)","v":0}]
[null,"C1","...die Führungsgrundsätze in Ihrem Unternehmen?",null,{"$f":"IF(' Fragebogen (1)'!E29=\"\",\"\",' Fragebogen (1)'!E29)","v":""},{"$f":"IF(' Fragebogen (2)'!E29=\"\",\"\",' Fragebogen (2)'!E29)","v":""},{"$f":"IF(' Fragebogen (3)'!E29=\"\",\"\",' Fragebogen (3)'!E29)","v":""},{"$f":"IF(' Fragebogen (4)'!E29=\"\",\"\",' Fragebogen (4)'!E29)","v":""},{"$f":"IF(' Fragebogen (5)'!E29=\"\",\"\",' Fragebogen (5)'!E29)","v":""},{"$f":"IF(' Fragebogen (6)'!E29=\"\",\"\",' Fragebogen (6)'!E29)","v":""},{"$f":"IF(' Fragebogen (7)'!E29=\"\",\"\",' Fragebogen (7)'!E29)","v":""},{"$f":"IF(AND(E29=\"\",F29=\"\",G29=\"\",H29=\"\",I29=\"\",J29=\"\",K29=\"\"),0,AVERAGE(E29:K29))","v":0},{"$f":"MIN(E29:K29)","v":0},{"$f":"MAX(E29:K29)","v":0},null,{"$f":"IF(' Fragebogen (1)'!G29=\"\",\"\",' Fragebogen (1)'!G29)","v":""},{"$f":"IF(' Fragebogen (2)'!G29=\"\",\"\",' Fragebogen (2)'!G29)","v":""},{"$f":"IF(' Fragebogen (3)'!G29=\"\",\"\",' Fragebogen (3)'!G29)","v":""},{"$f":"IF(' Fragebogen (4)'!G29=\"\",\"\",' Fragebogen (4)'!G29)","v":""},{"$f":"IF(' Fragebogen (5)'!G29=\"\",\"\",' Fragebogen (5)'!G29)","v":""},{"$f":"IF(' Fragebogen (6)'!G29=\"\",\"\",' Fragebogen (6)'!G29)","v":""},{"$f":"IF(' Fragebogen (7)'!G29=\"\",\"\",' Fragebogen (7)'!G29)","v":""},{"$f":"IF(AND(P29=\"\",Q29=\"\",R29=\"\",S29=\"\",T29=\"\",U29=\"\",V29=\"\"),0,AVERAGE(P29:V29))","v":0},{"$f":"MIN(P29:V29)","v":0},{"$f":"MAX(P29:V29)","v":0}]
[null,"C1","..die Anerkennung für Leistung (z.B. durch Wertschätzung, Lob)?",null,{"$f":"IF(' Fragebogen (1)'!E30=\"\",\"\",' Fragebogen (1)'!E30)","v":""},{"$f":"IF(' Fragebogen (2)'!E30=\"\",\"\",' Fragebogen (2)'!E30)","v":""},{"$f":"IF(' Fragebogen (3)'!E30=\"\",\"\",' Fragebogen (3)'!E30)","v":""},{"$f":"IF(' Fragebogen (4)'!E30=\"\",\"\",' Fragebogen (4)'!E30)","v":""},{"$f":"IF(' Fragebogen (5)'!E30=\"\",\"\",' Fragebogen (5)'!E30)","v":""},{"$f":"IF(' Fragebogen (6)'!E30=\"\",\"\",' Fragebogen (6)'!E30)","v":""},{"$f":"IF(' Fragebogen (7)'!E30=\"\",\"\",' Fragebogen (7)'!E30)","v":""},0,0,0,null,{"$f":"IF(' Fragebogen (1)'!G30=\"\",\"\",' Fragebogen (1)'!G30)","v":""},{"$f":"IF(' Fragebogen (2)'!G30=\"\",\"\",' Fragebogen (2)'!G30)","v":""},{"$f":"IF(' Fragebogen (3)'!G30=\"\",\"\",' Fragebogen (3)'!G30)","v":""},{"$f":"IF(' Fragebogen (4)'!G30=\"\",\"\",' Fragebogen (4)'!G30)","v":""},{"$f":"IF(' Fragebogen (5)'!G30=\"\",\"\",' Fragebogen (5)'!G30)","v":""},{"$f":"IF(' Fragebogen (6)'!G30=\"\",\"\",' Fragebogen (6)'!G30)","v":""},{"$f":"IF(' Fragebogen (7)'!G30=\"\",\"\",' Fragebogen (7)'!G30)","v":""},0,0,0]
[null,"C1","...die Entscheidungswege in Ihrem Unternehmen hinsichtlich  Schnelligkeit?",null,{"$f":"IF(' Fragebogen (1)'!E31=\"\",\"\",' Fragebogen (1)'!E31)","v":""},{"$f":"IF(' Fragebogen (2)'!E31=\"\",\"\",' Fragebogen (2)'!E31)","v":""},{"$f":"IF(' Fragebogen (3)'!E31=\"\",\"\",' Fragebogen (3)'!E31)","v":""},{"$f":"IF(' Fragebogen (4)'!E31=\"\",\"\",' Fragebogen (4)'!E31)","v":""},{"$f":"IF(' Fragebogen (5)'!E31=\"\",\"\",' Fragebogen (5)'!E31)","v":""},{"$f":"IF(' Fragebogen (6)'!E31=\"\",\"\",' Fragebogen (6)'!E31)","v":""},{"$f":"IF(' Fragebogen (7)'!E31=\"\",\"\",' Fragebogen (7)'!E31)","v":""},0,0,0,null,{"$f":"IF(' Fragebogen (1)'!G31=\"\",\"\",' Fragebogen (1)'!G31)","v":""},{"$f":"IF(' Fragebogen (2)'!G31=\"\",\"\",' Fragebogen (2)'!G31)","v":""},{"$f":"IF(' Fragebogen (3)'!G31=\"\",\"\",' Fragebogen (3)'!G31)","v":""},{"$f":"IF(' Fragebogen (4)'!G31=\"\",\"\",' Fragebogen (4)'!G31)","v":""},{"$f":"IF(' Fragebogen (5)'!G31=\"\",\"\",' Fragebogen (5)'!G31)","v":""},{"$f":"IF(' Fragebogen (6)'!G31=\"\",\"\",' Fragebogen (6)'!G31)","v":""},{"$f":"IF(' Fragebogen (7)'!G31=\"\",\"\",' Fragebogen (7)'!G31)","v":""},0,0,0]
[null,"C2","...die Qualität und Häufigkeit von Information und Kommunikation innerhalb des Unternehmens?",null,{"$f":"IF(' Fragebogen (1)'!E32=\"\",\"\",' Fragebogen (1)'!E32)","v":""},{"$f":"IF(' Fragebogen (2)'!E32=\"\",\"\",' Fragebogen (2)'!E32)","v":""},{"$f":"IF(' Fragebogen (3)'!E32=\"\",\"\",' Fragebogen (3)'!E32)","v":""},{"$f":"IF(' Fragebogen (4)'!E32=\"\",\"\",' Fragebogen (4)'!E32)","v":""},{"$f":"IF(' Fragebogen (5)'!E32=\"\",\"\",' Fragebogen (5)'!E32)","v":""},{"$f":"IF(' Fragebogen (6)'!E32=\"\",\"\",' Fragebogen (6)'!E32)","v":""},{"$f":"IF(' Fragebogen (7)'!E32=\"\",\"\",' Fragebogen (7)'!E32)","v":""},0,0,0,null,{"$f":"IF(' Fragebogen (1)'!G32=\"\",\"\",' Fragebogen (1)'!G32)","v":""},{"$f":"IF(' Fragebogen (2)'!G32=\"\",\"\",' Fragebogen (2)'!G32)","v":""},{"$f":"IF(' Fragebogen (3)'!G32=\"\",\"\",' Fragebogen (3)'!G32)","v":""},{"$f":"IF(' Fragebogen (4)'!G32=\"\",\"\",' Fragebogen (4)'!G32)","v":""},{"$f":"IF(' Fragebogen (5)'!G32=\"\",\"\",' Fragebogen (5)'!G32)","v":""},{"$f":"IF(' Fragebogen (6)'!G32=\"\",\"\",' Fragebogen (6)'!G32)","v":""},{"$f":"IF(' Fragebogen (7)'!G32=\"\",\"\",' Fragebogen (7)'!G32)","v":""},0,0,0]
[null,"C3","...die Möglichkeiten, neue Ideen einzubringen und umzusetzen?",null,{"$f":"IF(' Fragebogen (1)'!E33=\"\",\"\",' Fragebogen (1)'!E33)","v":""},{"$f":"IF(' Fragebogen (2)'!E33=\"\",\"\",' Fragebogen (2)'!E33)","v":""},{"$f":"IF(' Fragebogen (3)'!E33=\"\",\"\",' Fragebogen (3)'!E33)","v":""},{"$f":"IF(' Fragebogen (4)'!E33=\"\",\"\",' Fragebogen (4)'!E33)","v":""},{"$f":"IF(' Fragebogen (5)'!E33=\"\",\"\",' Fragebogen (5)'!E33)","v":""},{"$f":"IF(' Fragebogen (6)'!E33=\"\",\"\",' Fragebogen (6)'!E33)","v":""},{"$f":"IF(' Fragebogen (7)'!E33=\"\",\"\",' Fragebogen (7)'!E33)","v":""},0,0,0,null,{"$f":"IF(' Fragebogen (1)'!G33=\"\",\"\",' Fragebogen (1)'!G33)","v":""},{"$f":"IF(' Fragebogen (2)'!G33=\"\",\"\",' Fragebogen (2)'!G33)","v":""},{"$f":"IF(' Fragebogen (3)'!G33=\"\",\"\",' Fragebogen (3)'!G33)","v":""},{"$f":"IF(' Fragebogen (4)'!G33=\"\",\"\",' Fragebogen (4)'!G33)","v":""},{"$f":"IF(' Fragebogen (5)'!G33=\"\",\"\",' Fragebogen (5)'!G33)","v":""},{"$f":"IF(' Fragebogen (6)'!G33=\"\",\"\",' Fragebogen (6)'!G33)","v":""},{"$f":"IF(' Fragebogen (7)'!G33=\"\",\"\",' Fragebogen (7)'!G33)","v":""},0,0,0]
[null,"C4","...die Identifikation der Mitarbeitenden mit Ihrer Unternehmung?",null,{"$f":"IF(' Fragebogen (1)'!E34=\"\",\"\",' Fragebogen (1)'!E34)","v":""},{"$f":"IF(' Fragebogen (2)'!E34=\"\",\"\",' Fragebogen (2)'!E34)","v":""},{"$f":"IF(' Fragebogen (3)'!E34=\"\",\"\",' Fragebogen (3)'!E34)","v":""},{"$f":"IF(' Fragebogen (4)'!E34=\"\",\"\",' Fragebogen (4)'!E34)","v":""},{"$f":"IF(' Fragebogen (5)'!E34=\"\",\"\",' Fragebogen (5)'!E34)","v":""},{"$f":"IF(' Fragebogen (6)'!E34=\"\",\"\",' Fragebogen (6)'!E34)","v":""},{"$f":"IF(' Fragebogen (7)'!E34=\"\",\"\",' Fragebogen (7)'!E34)","v":""},0,0,0,null,{"$f":"IF(' Fragebogen (1)'!G34=\"\",\"\",' Fragebogen (1)'!G34)","v":""},{"$f":"IF(' Fragebogen (2)'!G34=\"\",\"\",' Fragebogen (2)'!G34)","v":""},{"$f":"IF(' Fragebogen (3)'!G34=\"\",\"\",' Fragebogen (3)'!G34)","v":""},{"$f":"IF(' Fragebogen (4)'!G34=\"\",\"\",' Fragebogen (4)'!G34)","v":""},{"$f":"IF(' Fragebogen (5)'!G34=\"\",\"\",' Fragebogen (5)'!G34)","v":""},{"$f":"IF(' Fragebogen (6)'!G34=\"\",\"\",' Fragebogen (6)'!G34)","v":""},{"$f":"IF(' Fragebogen (7)'!G34=\"\",\"\",' Fragebogen (7)'!G34)","v":""},0,0,0]
[null,"C4","...die Attraktivität des Leitbildes Ihres Unternehmens?",null,{"$f":"IF(' Fragebogen (1)'!E35=\"\",\"\",' Fragebogen (1)'!E35)","v":""},{"$f":"IF(' Fragebogen (2)'!E35=\"\",\"\",' Fragebogen (2)'!E35)","v":""},{"$f":"IF(' Fragebogen (3)'!E35=\"\",\"\",' Fragebogen (3)'!E35)","v":""},{"$f":"IF(' Fragebogen (4)'!E35=\"\",\"\",' Fragebogen (4)'!E35)","v":""},{"$f":"IF(' Fragebogen (5)'!E35=\"\",\"\",' Fragebogen (5)'!E35)","v":""},{"$f":"IF(' Fragebogen (6)'!E35=\"\",\"\",' Fragebogen (6)'!E35)","v":""},{"$f":"IF(' Fragebogen (7)'!E35=\"\",\"\",' Fragebogen (7)'!E35)","v":""},0,0,0,null,{"$f":"IF(' Fragebogen (1)'!G35=\"\",\"\",' Fragebogen (1)'!G35)","v":""},{"$f":"IF(' Fragebogen (2)'!G35=\"\",\"\",' Fragebogen (2)'!G35)","v":""},{"$f":"IF(' Fragebogen (3)'!G35=\"\",\"\",' Fragebogen (3)'!G35)","v":""},{"$f":"IF(' Fragebogen (4)'!G35=\"\",\"\",' Fragebogen (4)'!G35)","v":""},{"$f":"IF(' Fragebogen (5)'!G35=\"\",\"\",' Fragebogen (5)'!G35)","v":""},{"$f":"IF(' Fragebogen (6)'!G35=\"\",\"\",' Fragebogen (6)'!G35)","v":""},{"$f":"IF(' Fragebogen (7)'!G35=\"\",\"\",' Fragebogen (7)'!G35)","v":""},0,0,0]
[null,"C4","...die Attraktivität der Produkte für Arbeitnehmende?",null,{"$f":"IF(' Fragebogen (1)'!E36=\"\",\"\",' Fragebogen (1)'!E36)","v":""},{"$f":"IF(' Fragebogen (2)'!E36=\"\",\"\",' Fragebogen (2)'!E36)","v":""},{"$f":"IF(' Fragebogen (3)'!E36=\"\",\"\",' Fragebogen (3)'!E36)","v":""},{"$f":"IF(' Fragebogen (4)'!E36=\"\",\"\",' Fragebogen (4)'!E36)","v":""},{"$f":"IF(' Fragebogen (5)'!E36=\"\",\"\",' Fragebogen (5)'!E36)","v":""},{"$f":"IF(' Fragebogen (6)'!E36=\"\",\"\",' Fragebogen (6)'!E36)","v":""},{"$f":"IF(' Fragebogen (7)'!E36=\"\",\"\",' Fragebogen (7)'!E36)","v":""},0,0,0,null,{"$f":"IF(' Fragebogen (1)'!G36=\"\",\"\",' Fragebogen (1)'!G36)","v":""},{"$f":"IF(' Fragebogen (2)'!G36=\"\",\"\",' Fragebogen (2)'!G36)","v":""},{"$f":"IF(' Fragebogen (3)'!G36=\"\",\"\",' Fragebogen (3)'!G36)","v":""},{"$f":"IF(' Fragebogen (4)'!G36=\"\",\"\",' Fragebogen (4)'!G36)","v":""},{"$f":"IF(' Fragebogen (5)'!G36=\"\",\"\",' Fragebogen (5)'!G36)","v":""},{"$f":"IF(' Fragebogen (6)'!G36=\"\",\"\",' Fragebogen (6)'!G36)","v":""},{"$f":"IF(' Fragebogen (7)'!G36=\"\",\"\",' Fragebogen (7)'!G36)","v":""},0,0,0]
[null,"C4","...die Attraktivität Ihrer Branche?",null,{"$f":"IF(' Fragebogen (1)'!E37=\"\",\"\",' Fragebogen (1)'!E37)","v":""},{"$f":"IF(' Fragebogen (2)'!E37=\"\",\"\",' Fragebogen (2)'!E37)","v":""},{"$f":"IF(' Fragebogen (3)'!E37=\"\",\"\",' Fragebogen (3)'!E37)","v":""},{"$f":"IF(' Fragebogen (4)'!E37=\"\",\"\",' Fragebogen (4)'!E37)","v":""},{"$f":"IF(' Fragebogen (5)'!E37=\"\",\"\",' Fragebogen (5)'!E37)","v":""},{"$f":"IF(' Fragebogen (6)'!E37=\"\",\"\",' Fragebogen (6)'!E37)","v":""},{"$f":"IF(' Fragebogen (7)'!E37=\"\",\"\",' Fragebogen (7)'!E37)","v":""},0,0,0,null,{"$f":"IF(' Fragebogen (1)'!G37=\"\",\"\",' Fragebogen (1)'!G37)","v":""},{"$f":"IF(' Fragebogen (2)'!G37=\"\",\"\",' Fragebogen (2)'!G37)","v":""},{"$f":"IF(' Fragebogen (3)'!G37=\"\",\"\",' Fragebogen (3)'!G37)","v":""},{"$f":"IF(' Fragebogen (4)'!G37=\"\",\"\",' Fragebogen (4)'!G37)","v":""},{"$f":"IF(' Fragebogen (5)'!G37=\"\",\"\",' Fragebogen (5)'!G37)","v":""},{"$f":"IF(' Fragebogen (6)'!G37=\"\",\"\",' Fragebogen (6)'!G37)","v":""},{"$f":"IF(' Fragebogen (7)'!G37=\"\",\"\",' Fragebogen (7)'!G37)","v":""},0,0,0]
[null,"C5","...die Work-Life-Balance (z.B. Familienfreundlichkeit, Teilzeitarbeit, standortunabhängiges Arbeiten, Elternurlaub) Ihrer Unternehmung?",null,{"$f":"IF(' Fragebogen (1)'!E38=\"\",\"\",' Fragebogen (1)'!E38)","v":""},{"$f":"IF(' Fragebogen (2)'!E38=\"\",\"\",' Fragebogen (2)'!E38)","v":""},{"$f":"IF(' Fragebogen (3)'!E38=\"\",\"\",' Fragebogen (3)'!E38)","v":""},{"$f":"IF(' Fragebogen (4)'!E38=\"\",\"\",' Fragebogen (4)'!E38)","v":""},{"$f":"IF(' Fragebogen (5)'!E38=\"\",\"\",' Fragebogen (5)'!E38)","v":""},{"$f":"IF(' Fragebogen (6)'!E38=\"\",\"\",' Fragebogen (6)'!E38)","v":""},{"$f":"IF(' Fragebogen (7)'!E38=\"\",\"\",' Fragebogen (7)'!E38)","v":""},{"$f":"IF(AND(E38=\"\",F38=\"\",G38=\"\",H38=\"\",I38=\"\",J38=\"\",K38=\"\"),0,AVERAGE(E38:K38))","v":0},0,0,null,{"$f":"IF(' Fragebogen (1)'!G38=\"\",\"\",' Fragebogen (1)'!G38)","v":""},{"$f":"IF(' Fragebogen (2)'!G38=\"\",\"\",' Fragebogen (2)'!G38)","v":""},{"$f":"IF(' Fragebogen (3)'!G38=\"\",\"\",' Fragebogen (3)'!G38)","v":""},{"$f":"IF(' Fragebogen (4)'!G38=\"\",\"\",' Fragebogen (4)'!G38)","v":""},{"$f":"IF(' Fragebogen (5)'!G38=\"\",\"\",' Fragebogen (5)'!G38)","v":""},{"$f":"IF(' Fragebogen (6)'!G38=\"\",\"\",' Fragebogen (6)'!G38)","v":""},{"$f":"IF(' Fragebogen (7)'!G38=\"\",\"\",' Fragebogen (7)'!G38)","v":""},{"$f":"IF(AND(P38=\"\",Q38=\"\",R38=\"\",S38=\"\",T38=\"\",U38=\"\",V38=\"\"),0,AVERAGE(P38:V38))","v":0},0,0]
[]
[null,"D1","...die Verkehrsanbindung des Unternehmens (öffenlticher Verkehr und Individualverkehr)?",null,{"$f":"IF(' Fragebogen (1)'!E40=\"\",\"\",' Fragebogen (1)'!E40)","v":""},{"$f":"IF(' Fragebogen (2)'!E40=\"\",\"\",' Fragebogen (2)'!E40)","v":""},{"$f":"IF(' Fragebogen (3)'!E40=\"\",\"\",' Fragebogen (3)'!E40)","v":""},{"$f":"IF(' Fragebogen (4)'!E40=\"\",\"\",' Fragebogen (4)'!E40)","v":""},{"$f":"IF(' Fragebogen (5)'!E40=\"\",\"\",' Fragebogen (5)'!E40)","v":""},{"$f":"IF(' Fragebogen (6)'!E40=\"\",\"\",' Fragebogen (6)'!E40)","v":""},{"$f":"IF(' Fragebogen (7)'!E40=\"\",\"\",' Fragebogen (7)'!E40)","v":""},{"$f":"IF(AND(E40=\"\",F40=\"\",G40=\"\",H40=\"\",I40=\"\",J40=\"\",K40=\"\"),0,AVERAGE(E40:K40))","v":0},{"$f":"MIN(E40:K40)","v":0},{"$f":"MAX(E40:K40)","v":0},null,{"$f":"IF(' Fragebogen (1)'!G40=\"\",\"\",' Fragebogen (1)'!G40)","v":""},{"$f":"IF(' Fragebogen (2)'!G40=\"\",\"\",' Fragebogen (2)'!G40)","v":""},{"$f":"IF(' Fragebogen (3)'!G40=\"\",\"\",' Fragebogen (3)'!G40)","v":""},{"$f":"IF(' Fragebogen (4)'!G40=\"\",\"\",' Fragebogen (4)'!G40)","v":""},{"$f":"IF(' Fragebogen (5)'!G40=\"\",\"\",' Fragebogen (5)'!G40)","v":""},{"$f":"IF(' Fragebogen (6)'!G40=\"\",\"\",' Fragebogen (6)'!G40)","v":""},{"$f":"IF(' Fragebogen (7)'!G40=\"\",\"\",' Fragebogen (7)'!G40)","v":""},{"$f":"IF(AND(P40=\"\",Q40=\"\",R40=\"\",S40=\"\",T40=\"\",U40=\"\",V40=\"\"),0,AVERAGE(P40:V40))","v":0},{"$f":"MIN(P40:V40)","v":0},{"$f":"MAX(P40:V40)","v":0}]
[null,"D2","...das Image der Region?",null,{"$f":"IF(' Fragebogen (1)'!E41=\"\",\"\",' Fragebogen (1)'!E41)","v":""},{"$f":"IF(' Fragebogen (2)'!E41=\"\",\"\",' Fragebogen (2)'!E41)","v":""},{"$f":"IF(' Fragebogen (3)'!E41=\"\",\"\",' Fragebogen (3)'!E41)","v":""},{"$f":"IF(' Fragebogen (4)'!E41=\"\",\"\",' Fragebogen (4)'!E41)","v":""},{"$f":"IF(' Fragebogen (5)'!E41=\"\",\"\",' Fragebogen (5)'!E41)","v":""},{"$f":"IF(' Fragebogen (6)'!E41=\"\",\"\",' Fragebogen (6)'!E41)","v":""},{"$f":"IF(' Fragebogen (7)'!E41=\"\",\"\",' Fragebogen (7)'!E41)","v":""},{"$f":"IF(AND(E41=\"\",F41=\"\",G41=\"\",H41=\"\",I41=\"\",J41=\"\",K41=\"\"),0,AVERAGE(E41:K41))","v":0},{"$f":"MIN(E41:K41)","v":0},{"$f":"MAX(E41:K41)","v":0},null,{"$f":"IF(' Fragebogen (1)'!G41=\"\",\"\",' Fragebogen (1)'!G41)","v":""},{"$f":"IF(' Fragebogen (2)'!G41=\"\",\"\",' Fragebogen (2)'!G41)","v":""},{"$f":"IF(' Fragebogen (3)'!G41=\"\",\"\",' Fragebogen (3)'!G41)","v":""},{"$f":"IF(' Fragebogen (4)'!G41=\"\",\"\",' Fragebogen (4)'!G41)","v":""},{"$f":"IF(' Fragebogen (5)'!G41=\"\",\"\",' Fragebogen (5)'!G41)","v":""},{"$f":"IF(' Fragebogen (6)'!G41=\"\",\"\",' Fragebogen (6)'!G41)","v":""},{"$f":"IF(' Fragebogen (7)'!G41=\"\",\"\",' Fragebogen (7)'!G41)","v":""},{"$f":"IF(AND(P41=\"\",Q41=\"\",R41=\"\",S41=\"\",T41=\"\",U41=\"\",V41=\"\"),0,AVERAGE(P41:V41))","v":0},{"$f":"MIN(P41:V41)","v":0},{"$f":"MAX(P41:V41)","v":0}]
[null,"D3","...die Präsenz Ihres Unternehmens in der öffentlichen Wahrnehmung (z.B. Zeitungsberichterstattung) in der Region?",null,{"$f":"IF(' Fragebogen (1)'!E42=\"\",\"\",' Fragebogen (1)'!E42)","v":""},{"$f":"IF(' Fragebogen (2)'!E42=\"\",\"\",' Fragebogen (2)'!E42)","v":""},{"$f":"IF(' Fragebogen (3)'!E42=\"\",\"\",' Fragebogen (3)'!E42)","v":""},{"$f":"IF(' Fragebogen (4)'!E42=\"\",\"\",' Fragebogen (4)'!E42)","v":""},{"$f":"IF(' Fragebogen (5)'!E42=\"\",\"\",' Fragebogen (5)'!E42)","v":""},{"$f":"IF(' Fragebogen (6)'!E42=\"\",\"\",' Fragebogen (6)'!E42)","v":""},{"$f":"IF(' Fragebogen (7)'!E42=\"\",\"\",' Fragebogen (7)'!E42)","v":""},0,0,0,null,{"$f":"IF(' Fragebogen (1)'!G42=\"\",\"\",' Fragebogen (1)'!G42)","v":""},{"$f":"IF(' Fragebogen (2)'!G42=\"\",\"\",' Fragebogen (2)'!G42)","v":""},{"$f":"IF(' Fragebogen (3)'!G42=\"\",\"\",' Fragebogen (3)'!G42)","v":""},{"$f":"IF(' Fragebogen (4)'!G42=\"\",\"\",' Fragebogen (4)'!G42)","v":""},{"$f":"IF(' Fragebogen (5)'!G42=\"\",\"\",' Fragebogen (5)'!G42)","v":""},{"$f":"IF(' Fragebogen (6)'!G42=\"\",\"\",' Fragebogen (6)'!G42)","v":""},{"$f":"IF(' Fragebogen (7)'!G42=\"\",\"\",' Fragebogen (7)'!G42)","v":""},0,0,0]
[null,"D3","...die regionale Verbundenheit von auswärtigen bzw. ausländischen Arbeitskräften?",null,{"$f":"IF(' Fragebogen (1)'!E43=\"\",\"\",' Fragebogen (1)'!E43)","v":""},{"$f":"IF(' Fragebogen (2)'!E43=\"\",\"\",' Fragebogen (2)'!E43)","v":""},{"$f":"IF(' Fragebogen (3)'!E43=\"\",\"\",' Fragebogen (3)'!E43)","v":""},{"$f":"IF(' Fragebogen (4)'!E43=\"\",\"\",' Fragebogen (4)'!E43)","v":""},{"$f":"IF(' Fragebogen (5)'!E43=\"\",\"\",' Fragebogen (5)'!E43)","v":""},{"$f":"IF(' Fragebogen (6)'!E43=\"\",\"\",' Fragebogen (6)'!E43)","v":""},{"$f":"IF(' Fragebogen (7)'!E43=\"\",\"\",' Fragebogen (7)'!E43)","v":""},0,0,0,null,{"$f":"IF(' Fragebogen (1)'!G43=\"\",\"\",' Fragebogen (1)'!G43)","v":""},{"$f":"IF(' Fragebogen (2)'!G43=\"\",\"\",' Fragebogen (2)'!G43)","v":""},{"$f":"IF(' Fragebogen (3)'!G43=\"\",\"\",' Fragebogen (3)'!G43)","v":""},{"$f":"IF(' Fragebogen (4)'!G43=\"\",\"\",' Fragebogen (4)'!G43)","v":""},{"$f":"IF(' Fragebogen (5)'!G43=\"\",\"\",' Fragebogen (5)'!G43)","v":""},{"$f":"IF(' Fragebogen (6)'!G43=\"\",\"\",' Fragebogen (6)'!G43)","v":""},{"$f":"IF(' Fragebogen (7)'!G43=\"\",\"\",' Fragebogen (7)'!G43)","v":""},0,0,0]
[null,"D3","...Ihre Relocation-Angebote für auswärtige bzw. ausländische Arbeitskräfte und deren Familien (z.B. Informationen zu ausländischen Schulen, Wohnungssuche etc.)?",null,{"$f":"IF(' Fragebogen (1)'!E44=\"\",\"\",' Fragebogen (1)'!E44)","v":""},{"$f":"IF(' Fragebogen (2)'!E44=\"\",\"\",' Fragebogen (2)'!E44)","v":""},{"$f":"IF(' Fragebogen (3)'!E44=\"\",\"\",' Fragebogen (3)'!E44)","v":""},{"$f":"IF(' Fragebogen (4)'!E44=\"\",\"\",' Fragebogen (4)'!E44)","v":""},{"$f":"IF(' Fragebogen (5)'!E44=\"\",\"\",' Fragebogen (5)'!E44)","v":""},{"$f":"IF(' Fragebogen (6)'!E44=\"\",\"\",' Fragebogen (6)'!E44)","v":""},{"$f":"IF(' Fragebogen (7)'!E44=\"\",\"\",' Fragebogen (7)'!E44)","v":""},0,0,0,null,{"$f":"IF(' Fragebogen (1)'!G44=\"\",\"\",' Fragebogen (1)'!G44)","v":""},{"$f":"IF(' Fragebogen (2)'!G44=\"\",\"\",' Fragebogen (2)'!G44)","v":""},{"$f":"IF(' Fragebogen (3)'!G44=\"\",\"\",' Fragebogen (3)'!G44)","v":""},{"$f":"IF(' Fragebogen (4)'!G44=\"\",\"\",' Fragebogen (4)'!G44)","v":""},{"$f":"IF(' Fragebogen (5)'!G44=\"\",\"\",' Fragebogen (5)'!G44)","v":""},{"$f":"IF(' Fragebogen (6)'!G44=\"\",\"\",' Fragebogen (6)'!G44)","v":""},{"$f":"IF(' Fragebogen (7)'!G44=\"\",\"\",' Fragebogen (7)'!G44)","v":""},0,0,0]
[null,"D4","Wie beurteilen Sie die Kooperation / Vernetzung mit anderen Unternehmen in der Region?",null,{"$f":"IF(' Fragebogen (1)'!E45=\"\",\"\",' Fragebogen (1)'!E45)","v":""},{"$f":"IF(' Fragebogen (2)'!E45=\"\",\"\",' Fragebogen (2)'!E45)","v":""},{"$f":"IF(' Fragebogen (3)'!E45=\"\",\"\",' Fragebogen (3)'!E45)","v":""},{"$f":"IF(' Fragebogen (4)'!E45=\"\",\"\",' Fragebogen (4)'!E45)","v":""},{"$f":"IF(' Fragebogen (5)'!E45=\"\",\"\",' Fragebogen (5)'!E45)","v":""},{"$f":"IF(' Fragebogen (6)'!E45=\"\",\"\",' Fragebogen (6)'!E45)","v":""},{"$f":"IF(' Fragebogen (7)'!E45=\"\",\"\",' Fragebogen (7)'!E45)","v":""},0,0,0,null,{"$f":"IF(' Fragebogen (1)'!G45=\"\",\"\",' Fragebogen (1)'!G45)","v":""},{"$f":"IF(' Fragebogen (2)'!G45=\"\",\"\",' Fragebogen (2)'!G45)","v":""},{"$f":"IF(' Fragebogen (3)'!G45=\"\",\"\",' Fragebogen (3)'!G45)","v":""},{"$f":"IF(' Fragebogen (4)'!G45=\"\",\"\",' Fragebogen (4)'!G45)","v":""},{"$f":"IF(' Fragebogen (5)'!G45=\"\",\"\",' Fragebogen (5)'!G45)","v":""},{"$f":"IF(' Fragebogen (6)'!G45=\"\",\"\",' Fragebogen (6)'!G45)","v":""},{"$f":"IF(' Fragebogen (7)'!G45=\"\",\"\",' Fragebogen (7)'!G45)","v":""},0,0,0]
[null,"D4","...den Austausch mit regionalen Interessenverbänden (z.B. Kammern, Wirtschaftsverbände) und Behörden (z.B. Gemeinde und Kanton)?",null,{"$f":"IF(' Fragebogen (1)'!E46=\"\",\"\",' Fragebogen (1)'!E46)","v":""},{"$f":"IF(' Fragebogen (2)'!E46=\"\",\"\",' Fragebogen (2)'!E46)","v":""},{"$f":"IF(' Fragebogen (3)'!E46=\"\",\"\",' Fragebogen (3)'!E46)","v":""},{"$f":"IF(' Fragebogen (4)'!E46=\"\",\"\",' Fragebogen (4)'!E46)","v":""},{"$f":"IF(' Fragebogen (5)'!E46=\"\",\"\",' Fragebogen (5)'!E46)","v":""},{"$f":"IF(' Fragebogen (6)'!E46=\"\",\"\",' Fragebogen (6)'!E46)","v":""},{"$f":"IF(' Fragebogen (7)'!E46=\"\",\"\",' Fragebogen (7)'!E46)","v":""},0,0,0,null,{"$f":"IF(' Fragebogen (1)'!G46=\"\",\"\",' Fragebogen (1)'!G46)","v":""},{"$f":"IF(' Fragebogen (2)'!G46=\"\",\"\",' Fragebogen (2)'!G46)","v":""},{"$f":"IF(' Fragebogen (3)'!G46=\"\",\"\",' Fragebogen (3)'!G46)","v":""},{"$f":"IF(' Fragebogen (4)'!G46=\"\",\"\",' Fragebogen (4)'!G46)","v":""},{"$f":"IF(' Fragebogen (5)'!G46=\"\",\"\",' Fragebogen (5)'!G46)","v":""},{"$f":"IF(' Fragebogen (6)'!G46=\"\",\"\",' Fragebogen (6)'!G46)","v":""},{"$f":"IF(' Fragebogen (7)'!G46=\"\",\"\",' Fragebogen (7)'!G46)","v":""},0,0,0]
[null,"D5","...den Bekanntheitsgrad Ihres Unternehmens auf dem relevanten Arbeitsmarkt?",null,{"$f":"IF(' Fragebogen (1)'!E47=\"\",\"\",' Fragebogen (1)'!E47)","v":""},{"$f":"IF(' Fragebogen (2)'!E47=\"\",\"\",' Fragebogen (2)'!E47)","v":""},{"$f":"IF(' Fragebogen (3)'!E47=\"\",\"\",' Fragebogen (3)'!E47)","v":""},{"$f":"IF(' Fragebogen (4)'!E47=\"\",\"\",' Fragebogen (4)'!E47)","v":""},{"$f":"IF(' Fragebogen (5)'!E47=\"\",\"\",' Fragebogen (5)'!E47)","v":""},{"$f":"IF(' Fragebogen (6)'!E47=\"\",\"\",' Fragebogen (6)'!E47)","v":""},{"$f":"IF(' Fragebogen (7)'!E47=\"\",\"\",' Fragebogen (7)'!E47)","v":""},{"$f":"IF(AND(E47=\"\",F47=\"\",G47=\"\",H47=\"\",I47=\"\",J47=\"\",K47=\"\"),0,AVERAGE(E47:K47))","v":0},0,0,null,{"$f":"IF(' Fragebogen (1)'!G47=\"\",\"\",' Fragebogen (1)'!G47)","v":""},{"$f":"IF(' Fragebogen (2)'!G47=\"\",\"\",' Fragebogen (2)'!G47)","v":""},{"$f":"IF(' Fragebogen (3)'!G47=\"\",\"\",' Fragebogen (3)'!G47)","v":""},{"$f":"IF(' Fragebogen (4)'!G47=\"\",\"\",' Fragebogen (4)'!G47)","v":""},{"$f":"IF(' Fragebogen (5)'!G47=\"\",\"\",' Fragebogen (5)'!G47)","v":""},{"$f":"IF(' Fragebogen (6)'!G47=\"\",\"\",' Fragebogen (6)'!G47)","v":""},{"$f":"IF(' Fragebogen (7)'!G47=\"\",\"\",' Fragebogen (7)'!G47)","v":""},{"$f":"IF(AND(P47=\"\",Q47=\"\",R47=\"\",S47=\"\",T47=\"\",U47=\"\",V47=\"\"),0,AVERAGE(P47:V47))","v":0},0,0]
[]
[]
[null,"Zusammenfassung","Faktoren",null,null,null,null,null,null,null,null,"Ist","Min ist","Max Ist",null,null,null,null,null,null,null,null,"Soll","Min Soll","Max Soll"]
[null,"A1","A1 Attraktive \nTätigkeit",null,null,null,null,null,null,null,null,{"$f":" AVERAGE(L7,L8)","v":0},{"$f":" AVERAGE(M7,M8)","v":0},{"$f":" AVERAGE(N7,N8)","v":0},null,null,null,null,null,null,null,null,{"$f":" AVERAGE(W7,W8)","v":0},{"$f":" AVERAGE(X7,X8)","v":0},{"$f":" AVERAGE(Y7,Y8)","v":0}]
[null,"A2","A2 hohe Eigenverantwortung / Gestaltungsspielraum",null,null,null,null,null,null,null,null,{"$f":" AVERAGE(L9,L10)","v":0},{"$f":" AVERAGE(M9,M10)","v":0},{"$f":" AVERAGE(N9,N10)","v":0},null,null,null,null,null,null,null,null,{"$f":" AVERAGE(W9,W10)","v":0},{"$f":" AVERAGE(X9,X10)","v":0},{"$f":" AVERAGE(Y9,Y10)","v":0}]
[null,"A3","A3 Kollegialität",null,null,null,null,null,null,null,null,{"$f":"L11","v":0},{"$f":"M11","v":0},{"$f":"N11","v":0},null,null,null,null,null,null,null,null,{"$f":"W11","v":0},{"$f":"X11","v":0},{"$f":"Y11","v":0}]
[null,"A4","A4 Karriere-/ Entwicklungsmöglichkeiten",null,null,null,null,null,null,null,null,{"$f":" AVERAGE(L12,L15)","v":0},{"$f":" AVERAGE(M12,M15)","v":0},{"$f":" AVERAGE(N12,N15)","v":0},null,null,null,null,null,null,null,null,{"$f":" AVERAGE(W12,W15)","v":0},{"$f":" AVERAGE(X12,X15)","v":0},{"$f":" AVERAGE(Y12,Y15)","v":0}]
[null,"A5","A5 Unterstützung für Weiterbildung",null,null,null,null,null,null,null,null,{"$f":"L16","v":0},{"$f":"M16","v":0},{"$f":"N16","v":0},null,null,null,null,null,null,null,null,{"$f":"W16","v":0},{"$f":"X16","v":0},{"$f":"Y16","v":0}]
[null,"A6","A6 Arbeitsbelastung + Arbeitszeit",null,null,null,null,null,null,null,null,{"$f":" AVERAGE(L17,L19)","v":0},{"$f":" AVERAGE(M17,M19)","v":0},{"$f":" AVERAGE(N17,N19)","v":0},null,null,null,null,null,null,null,null,{"$f":" AVERAGE(W17,W19)","v":0},{"$f":" AVERAGE(X17,X19)","v":0},{"$f":" AVERAGE(Y17,Y19)","v":0}]
[null,"A7","A7 Arbeitsplatzsicherheit",null,null,null,null,null,null,null,null,{"$f":"L20","v":0},{"$f":"M20","v":0},{"$f":"N20","v":0},null,null,null,null,null,null,null,null,{"$f":"W20","v":0},{"$f":"X20","v":0},{"$f":"Y20","v":0}]
[null,"B1","B1 Lohnniveau",null,null,null,null,null,null,null,null,{"$f":" AVERAGE(L22,L23)","v":0},{"$f":" AVERAGE(M22,M23)","v":0},{"$f":" AVERAGE(N22,N23)","v":0},null,null,null,null,null,null,null,null,{"$f":" AVERAGE(W22,W23)","v":0},{"$f":" AVERAGE(X22,X23)","v":0},{"$f":" AVERAGE(Y22,Y23)","v":0}]
[null,"B2","B2 Lohnmodell",null,null,null,null,null,null,null,null,{"$f":" AVERAGE(L24,L25)","v":0},{"$f":" AVERAGE(M24,M25)","v":0},{"$f":" AVERAGE(N24,N25)","v":0},null,null,null,null,null,null,null,null,{"$f":" AVERAGE(W24,W25)","v":0},{"$f":" AVERAGE(X24,X25)","v":0},{"$f":" AVERAGE(Y24,Y25)","v":0}]
[null,"B3","B3 Sozial- und Nebenleistungen",null,null,null,null,null,null,null,null,{"$f":"L26","v":0},{"$f":"M26","v":0},{"$f":"N26","v":0},null,null,null,null,null,null,null,null,{"$f":"W26","v":0},{"$f":"X26","v":0},{"$f":"Y26","v":0}]
[null,"C1","C1 Führungs-\nkultur",null,null,null,null,null,null,null,null,{"$f":" AVERAGE(L28,L31)","v":0},{"$f":" AVERAGE(M28,M31)","v":0},{"$f":" AVERAGE(N28,N31)","v":0},null,null,null,null,null,null,null,null,{"$f":" AVERAGE(W28,W31)","v":0},{"$f":" AVERAGE(X28,X31)","v":0},{"$f":" AVERAGE(Y28,Y31)","v":0}]
[null,"C2","C2 Informations- und Kommunikationspolitik",null,null,null,null,null,null,null,null,{"$f":"L32","v":0},0,0,null,null,null,null,null,null,null,null,{"$f":"W32","v":0},0,0]
[null,"C3","C3 Lernkultur/Innovationen",null,null,null,null,null,null,null,null,0,0,0,null,null,null,null,null,null,null,null,0,0,0]
[null,"C4","C4 Attraktivität des Unternehmens",null,null,null,null,null,null,null,null,{"$f":" AVERAGE(L34,L37)","v":0},{"$f":" AVERAGE(M34,M37)","v":0},{"$f":" AVERAGE(N34,N37)","v":0},null,null,null,null,null,null,null,null,{"$f":" AVERAGE(W34,W37)","v":0},{"$f":" AVERAGE(X34,X37)","v":0},{"$f":" AVERAGE(Y34,Y37)","v":0}]
[null,"C5","C5 Work-Life-Balance",null,null,null,null,null,null,null,null,{"$f":"L38","v":0},{"$f":"M38","v":0},{"$f":"N38","v":0},null,null,null,null,null,null,null,null,{"$f":"W38","v":0},{"$f":"X38","v":0},{"$f":"Y38","v":0}]
[null,"D1","D1 Verkehrsanbindung",null,null,null,null,null,null,null,null,{"$f":"L40","v":0},0,0,null,null,null,null,null,null,null,null,{"$f":"W40","v":0},0,0]
[null,"D2","D2 Image der Region",null,null,null,null,null,null,null,null,0,0,0,null,null,null,null,null,null,null,null,0,0,0]
[null,"D3","D3 Regionale Verankerung",null,null,null,null,null,null,null,null,{"$f":" AVERAGE(L42,L44)","v":0},{"$f":" AVERAGE(M42,M44)","v":0},{"$f":" AVERAGE(N42,N44)","v":0},null,null,null,null,null,null,null,null,{"$f":" AVERAGE(W42,W44)","v":0},{"$f":" AVERAGE(X42,X44)","v":0},{"$f":" AVERAGE(Y42,Y44)","v":0}]
[null,"D4","D4 Regionale Vernetzung",null,null,null,null,null,null,null,null,{"$f":" AVERAGE(L45,L46)","v":0},{"$f":" AVERAGE(M45,M46)","v":0},{"$f":" AVERAGE(N45,N46)","v":0},null,null,null,null,null,null,null,null,{"$f":" AVERAGE(W45,W46)","v":0},{"$f":" AVERAGE(X45,X46)","v":0},{"$f":" AVERAGE(Y45,Y46)","v":0}]
[null,"D5","D5 Arbeitsmarkt",null,null,null,null,null,null,null,null,{"$f":"L47","v":0},{"$f":"M47","v":0},{"$f":"N47","v":0},null,null,null,null,null,null,null,null,{"$f":"W47","v":0},{"$f":"X47","v":0},{"$f":"Y47","v":0}]

{"sheet":"Min_Max_Ist","index":10,"n_rows":0,"n_cols":0,"rows_kept":0,"cut":false,"hidden":false,"merged":[]}

{"sheet":"Min_Max_Soll","index":11,"n_rows":0,"n_cols":0,"rows_kept":0,"cut":false,"hidden":false,"merged":[]}

{"sheet":"Ist_Konkurrenz","index":12,"n_rows":0,"n_cols":0,"rows_kept":0,"cut":false,"hidden":true,"merged":[]}

{"sheet":"Soll_Konkurrenz","index":13,"n_rows":0,"n_cols":0,"rows_kept":0,"cut":false,"hidden":true,"merged":[]}

{"sheet":"Gesamtübersicht","index":14,"n_rows":0,"n_cols":0,"rows_kept":0,"cut":false,"hidden":true,"merged":[]}

{"sheet":"Ist_Soll","index":15,"n_rows":0,"n_cols":0,"rows_kept":0,"cut":false,"hidden":false,"merged":[]}

{"sheet":"Ist_Soll_Tabelle","index":16,"n_rows":128,"n_cols":5,"rows_kept":128,"cut":false,"hidden":true,"merged":[]}
[]
[]
[]
[]
[]
[]
[]
[null,"Faktoren","Ist","Soll","Differenz"]
[null,"A2 Position des Unternehmens am Markt ",5,null,{"$f":"IF(B9=\"\",\"\",D9-C9)","v":-5}]
[null,"A4 Gesellschaftliche Verantwortung",5,null,-5]
[null,"A5 Standortattraktivität",5,null,-5]
[null,"D2 Kollegiale Arbeitsatmosphäre",5,null,-5]
[null,"D3 Teamorientierung",5,null,-5]
[null,"D4 Identifikation mit dem Unternehmen",5,null,-5]
[null,"A1 Attraktivität der Branche",4,null,-4]
[null,"B1 Herausfordernde Tätigkeit",4,null,-4]
[null,"B2 Eigenverantwortung/Gestaltungsspielraum",4,null,-4]
[null,"B6 Moderne Arbeitszeitmodelle",4,null,-4]
[null,"B7 Arbeitsplatzausstattung & Infrastruktur",4,null,-4]
[null,"C1 Lohnniveau",4,null,-4]
[null,"D1 Kooperative Führungskultur",4,null,-4]
[null,"D5 Offene Kommunikationskultur",4,null,-4]
[null,"E4 Identifikation mit Marke",4,null,-4]
[null,"A3 Arbeitsplatzsicherheit",3,null,-3]
[null,"C2 Erfolgsanteil (STI)",3,null,-3]
[null,"C5 Sozialleistungen",3,null,-3]
[null,"D6 Effiziente Entscheidungsstrukturen",3,null,-3]
[null,"D7 Effektive Führung/Leadership",3,null,-3]
[null,"E1 Eindeutige Markenwerte",3,null,-3]
[null,"E2 Kennen der Kundenbedürfnisse",3,null,-3]
[null,"E5 Kommunikation stärkt Positionierung",3,null,-3]
[null,"B3 Karriere-/ Entwicklungsmöglichkeiten",2,null,-2]
[null,"B5 Angebote zur Work-Life Balance",2,null,-2]
[null,"C3 Erfolgsanteil (LTI)",2,null,-2]
[null,"C4 Nebenleistungen",2,null,-2]
[null,"D8 Anerkennung/Wertschätzung",2,null,-2]
[null,"E3 Profil entspricht Portfolio",2,null,-2]
[null,"E6 Emotionalität der Marke",2,null,-2]
[null,"B4 Internationale Perspektiven",1,null,-1]
[null,"",3,4,""]
[null,"",2,3,{"$f":"IF(B41=\"\",\"\",D41-C41)","v":""}]
[null,"",null,null,""]
[null,"",null,null,""]
[null,"",null,null,""]
[null,"",null,null,""]
[null,"",null,null,""]
[null,"",null,null,""]
[null,"",null,null,""]
[null,"",null,null,""]
[null,"",null,null,""]
[null,"",null,null,""]
[null,"",null,null,""]
[null,"",null,null,""]
[null,"",null,null,""]
[null,"",null,null,""]
[null,"",null,null,""]
[null,"",null,null,""]
[null,"",null,null,""]
[null,"",null,null,""]
[null,"",null,null,""]
[null,"",null,null,""]
[null,"",null,null,""]
[null,"",null,null,""]
[null,"",null,null,""]
[null,"",null,null,""]
[null,"",null,null,""]
[null,"",null,null,""]
[null,"",5,5,""]
[null,"",3,4,""]
[null,"",3,4,""]
[null,"",null,null,""]
[null,"",null,null,""]
[null,"",null,null,{"$f":"IF(B73=\"\",\"\",D73-C73)","v":""}]
[null,"",null,null,""]
[null,"",null,null,""]
[null,"",null,null,""]
[null,"",null,null,""]
[null,"",null,null,""]
[null,"",null,null,""]
[null,"",null,null,""]
[null,"",null,null,""]
[null,"",null,null,""]
[null,"",null,null,""]
[null,"",null,null,""]
[null,"",null,null,""]
[null,"",null,null,""]
[null,"",null,null,""]
[null,"",null,null,""]
[null,"",null,null,""]
[null,"",null,null,""]
[null,"",null,null,""]
[null,"",null,null,""]
[null,"",null,null,""]
[null,"",null,null,""]
[null,"",2,3,""]
[null,"",2,3,""]
[null,"",null,null,""]
[null,"",null,null,""]
[null,"",null,null,""]
[null,"",null,null,""]
[null,"",null,null,""]
[null,"",null,null,""]
[null,"",null,null,""]
[null,"",null,null,""]
[null,"",null,null,{"$f":"IF(B105=\"\",\"\",D105-C105)","v":""}]
[null,"",null,null,""]
[null,"",null,null,""]
[null,"",null,null,""]
[null,"",2,3,""]
[null,"",2,3,""]
[null,"",2,3,""]
[null,"",2,3,""]
[null,"",2,3,""]
[null,"",2,3,""]
[null,"",2,3,""]
[null,"",null,null,""]
[null,"",null,null,""]
[null,"",null,null,""]
[null,"",null,null,""]
[null,"",null,null,""]
[null,"",null,null,""]
[null,"",null,null,""]
[null,"",null,null,""]
[null,"",null,null,""]
[null,"",null,null,""]
[null,"",null,null,""]
[null,"",null,null,""]
[null,"",null,null,""]

{"sheet":"Ist_Konkurrenz_Tabelle","index":17,"n_rows":128,"n_cols":5,"rows_kept":128,"cut":false,"hidden":true,"merged":[]}
[]
[]
[]
[]
[]
[]
[]
[null,"Faktoren","Ist","Konkurrenz","Differenz"]
[null,"A2 Position des Unternehmens am Markt ",5,null,{"$f":"IF(B9=\"\",\"\",D9-C9)","v":-5}]
[null,"A4 Gesellschaftliche Verantwortung",5,null,-5]
[null,"A5 Standortattraktivität",5,null,-5]
[null,"D2 Kollegiale Arbeitsatmosphäre",5,null,-5]
[null,"D3 Teamorientierung",5,null,-5]
[null,"D4 Identifikation mit dem Unternehmen",5,null,-5]
[null,"A1 Attraktivität der Branche",4,null,-4]
[null,"B1 Herausfordernde Tätigkeit",4,null,-4]
[null,"B2 Eigenverantwortung/Gestaltungsspielraum",4,null,-4]
[null,"B6 Moderne Arbeitszeitmodelle",4,null,-4]
[null,"B7 Arbeitsplatzausstattung & Infrastruktur",4,null,-4]
[null,"C1 Lohnniveau",4,null,-4]
[null,"D1 Kooperative Führungskultur",4,null,-4]
[null,"D5 Offene Kommunikationskultur",4,null,-4]
[null,"E4 Identifikation mit Marke",4,null,-4]
[null,"A3 Arbeitsplatzsicherheit",3,null,-3]
[null,"C2 Erfolgsanteil (STI)",3,null,-3]
[null,"C5 Sozialleistungen",3,null,-3]
[null,"D6 Effiziente Entscheidungsstrukturen",3,null,-3]
[null,"D7 Effektive Führung/Leadership",3,null,-3]
[null,"E1 Eindeutige Markenwerte",3,null,-3]
[null,"E2 Kennen der Kundenbedürfnisse",3,null,-3]
[null,"E5 Kommunikation stärkt Positionierung",3,null,-3]
[null,"B3 Karriere-/ Entwicklungsmöglichkeiten",2,null,-2]
[null,"B5 Angebote zur Work-Life Balance",2,null,-2]
[null,"C3 Erfolgsanteil (LTI)",2,null,-2]
[null,"C4 Nebenleistungen",2,null,-2]
[null,"D8 Anerkennung/Wertschätzung",2,null,-2]
[null,"E3 Profil entspricht Portfolio",2,null,-2]
[null,"E6 Emotionalität der Marke",2,null,-2]
[null,"B4 Internationale Perspektiven",1,null,-1]
[null,"",3,4,""]
[null,"",2,3,{"$f":"IF(B41=\"\",\"\",D41-C41)","v":""}]
[null,"",null,null,""]
[null,"",null,null,""]
[null,"",null,null,""]
[null,"",null,null,""]
[null,"",null,null,""]
[null,"",null,null,""]
[null,"",null,null,""]
[null,"",null,null,""]
[null,"",null,null,""]
[null,"",null,null,""]
[null,"",null,null,""]
[null,"",null,null,""]
[null,"",null,null,""]
[null,"",null,null,""]
[null,"",null,null,""]
[null,"",null,null,""]
[null,"",null,null,""]
[null,"",null,null,""]
[null,"",null,null,""]
[null,"",null,null,""]
[null,"",null,null,""]
[null,"",null,null,""]
[null,"",null,null,""]
[null,"",null,null,""]
[null,"",null,null,""]
[null,"",null,null,""]
[null,"",5,4,""]
[null,"",3,3,""]
[null,"",3,5,""]
[null,"",null,null,""]
[null,"",null,null,""]
[null,"",null,null,{"$f":"IF(B73=\"\",\"\",D73-C73)","v":""}]
[null,"",null,null,""]
[null,"",null,null,""]
[null,"",null,null,""]
[null,"",null,null,""]
[null,"",null,null,""]
[null,"",null,null,""]
[null,"",null,null,""]
[null,"",null,null,""]
[null,"",null,null,""]
[null,"",null,null,""]
[null,"",null,null,""]
[null,"",null,null,""]
[null,"",null,null,""]
[null,"",null,null,""]
[null,"",null,null,""]
[null,"",null,null,""]
[null,"",null,null,""]
[null,"",null,null,""]
[null,"",null,null,""]
[null,"",null,null,""]
[null,"",null,null,""]
[null,"",2,4,""]
[null,"",2,4,""]
[null,"",null,null,""]
[null,"",null,null,""]
[null,"",null,null,""]
[null,"",null,null,""]
[null,"",null,null,""]
[null,"",null,null,""]
[null,"",null,null,""]
[null,"",null,null,""]
[null,"",null,null,{"$f":"IF(B105=\"\",\"\",D105-C105)","v":""}]
[null,"",null,null,""]
[null,"",null,null,""]
[null,"",null,null,""]
[null,"",2,4,""]
[null,"",2,4,""]
[null,"",2,4,""]
[null,"",2,4,""]
[null,"",2,4,""]
[null,"",2,4,""]
[null,"",2,4,""]
[null,"",null,null,""]
[null,"",null,null,""]
[null,"",null,null,""]
[null,"",null,null,""]
[null,"",null,null,""]
[null,"",null,null,""]
[null,"",null,null,""]
[null,"",null,null,""]
[null,"",null,null,""]
[null,"",null,null,""]
[null,"",null,null,""]
[null,"",null,null,""]
[null,"",null,null,""]

{"sheet":"Soll_Konkurrenz_Tabelle","index":18,"n_rows":128,"n_cols":5,"rows_kept":128,"cut":false,"hidden":true,"merged":[]}
[]
[]
[]
[]
[]
[]
[]
[null,"Faktoren","Soll","Konkurrenz","Differenz"]
[null,"A1 Attraktivität der Branche",null,null,{"$f":"IF(B9=\"\",\"\",D9-C9)","v":0}]
[null,"A2 Position des Unternehmens am Markt ",null,null,0]
[null,"A3 Arbeitsplatzsicherheit",null,null,0]
[null,"A4 Gesellschaftliche Verantwortung",null,null,0]
[null,"A5 Standortattraktivität",null,null,0]
[null,"B1 Herausfordernde Tätigkeit",null,null,0]
[null,"B2 Eigenverantwortung/Gestaltungsspielraum",null,null,0]
[null,"B3 Karriere-/ Entwicklungsmöglichkeiten",null,null,0]
[null,"B4 Internationale Perspektiven",null,null,0]
[null,"B5 Angebote zur Work-Life Balance",null,null,0]
[null,"B6 Moderne Arbeitszeitmodelle",null,null,0]
[null,"B7 Arbeitsplatzausstattung & Infrastruktur",null,null,0]
[null,"C1 Lohnniveau",null,null,0]
[null,"C2 Erfolgsanteil (STI)",null,null,0]
[null,"C3 Erfolgsanteil (LTI)",null,null,0]
[null,"C4 Nebenleistungen",null,null,0]
[null,"C5 Sozialleistungen",null,null,0]
[null,"D1 Kooperative Führungskultur",null,null,0]
[null,"D2 Kollegiale Arbeitsatmosphäre",null,null,0]
[null,"D3 Teamorientierung",null,null,0]
[null,"D4 Identifikation mit dem Unternehmen",null,null,0]
[null,"D5 Offene Kommunikationskultur",null,null,0]
[null,"D6 Effiziente Entscheidungsstrukturen",null,null,0]
[null,"D7 Effektive Führung/Leadership",null,null,0]
[null,"D8 Anerkennung/Wertschätzung",null,null,0]
[null,"E1 Eindeutige Markenwerte",null,null,0]
[null,"E2 Kennen der Kundenbedürfnisse",null,null,0]
[null,"E3 Profil entspricht Portfolio",null,null,0]
[null,"E4 Identifikation mit Marke",null,null,0]
[null,"E5 Kommunikation stärkt Positionierung",null,null,0]
[null,"E6 Emotionalität der Marke",null,null,0]
[null,"",null,null,""]
[null,"",null,null,{"$f":"IF(B41=\"\",\"\",D41-C41)","v":""}]
[null,"",null,null,""]
[null,"",null,null,""]
[null,"",null,null,""]
[null,"",null,null,""]
[null,"",null,null,""]
[null,"",null,null,""]
[null,"",null,null,""]
[null,"",null,null,""]
[null,"",null,null,""]
[null,"",null,null,""]
[null,"",null,null,""]
[null,"",null,null,""]
[null,"",null,null,""]
[null,"",null,null,""]
[null,"",null,null,""]
[null,"",null,null,""]
[null,"",null,null,""]
[null,"",null,null,""]
[null,"",null,null,""]
[null,"",null,null,""]
[null,"",null,null,""]
[null,"",null,null,""]
[null,"",null,null,""]
[null,"",null,null,""]
[null,"",null,null,""]
[null,"",null,null,""]
[null,"",null,null,""]
[null,"",null,null,""]
[null,"",null,null,""]
[null,"",null,null,""]
[null,"",null,null,""]
[null,"",null,null,{"$f":"IF(B73=\"\",\"\",D73-C73)","v":""}]
[null,"",null,null,""]
[null,"",null,null,""]
[null,"",null,null,""]
[null,"",null,null,""]
[null,"",null,null,""]
[null,"",null,null,""]
[null,"",null,null,""]
[null,"",null,null,""]
[null,"",null,null,""]
[null,"",null,null,""]
[null,"",null,null,""]
[null,"",null,null,""]
[null,"",null,null,""]
[null,"",null,null,""]
[null,"",null,null,""]
[null,"",null,null,""]
[null,"",null,null,""]
[null,"",null,null,""]
[null,"",null,null,""]
[null,"",null,null,""]
[null,"",null,null,""]
[null,"",3,4,""]
[null,"",3,4,""]
[null,"",null,null,""]
[null,"",null,null,""]
[null,"",null,null,""]
[null,"",null,null,""]
[null,"",null,null,""]
[null,"",null,null,""]
[null,"",null,null,""]
[null,"",null,null,""]
[null,"",null,null,{"$f":"IF(B105=\"\",\"\",D105-C105)","v":""}]
[null,"",null,null,""]
[null,"",null,null,""]
[null,"",null,null,""]
[null,"",3,4,""]
[null,"",3,4,""]
[null,"",3,4,""]
[null,"",3,4,""]
[null,"",3,4,""]
[null,"",3,4,""]
[null,"",3,4,""]
[null,"",null,null,""]
[null,"",null,null,""]
[null,"",null,null,""]
[null,"",null,null,""]
[null,"",null,null,""]
[null,"",null,null,""]
[null,"",null,null,""]
[null,"",null,null,""]
[null,"",null,null,""]
[null,"",null,null,""]
[null,"",null,null,""]
[null,"",null,null,""]
[null,"",null,null,""]